Workbook

Sheet Ноябрь 2018
B2: Уровень 1 | C2: Уровень 2 | D2: Дата | E2: 2018-11-26 | F2: 2018-11-26 | G2: 2018-11-27 | H2: 2018-11-27 | I2: 2018-11-28 | J2: 2018-11-29 | K2: 2018-11-29 | L2: 2018-12-05 | M2: 2018-12-06 | N2: 2018-12-07 | O2: 2018-12-12 | P2: 2018-12-12 | Q2: 2018-12-13 | R2: 2018-12-13 | S2: 2018-12-14 | T2: 2018-12-17 | U2: 2018-12-17 | V2: 2018-12-17 | W2: 2018-12-17 | X2: 2018-12-13 | Y2: 2018-12-13 | Z2: 2018-12-13 | AA2: 2018-12-13 | AB2: 2018-12-13 | AC2: 2018-12-12 | AD2: 2018-12-12 | AE2: 2018-12-12
E3: Западный | F3: Карасунский | G3: Западный | H3: Карасунский | I3: Прикубанский | J3: Центральный | K3: Западный | L3: Карасунский | M3: Центральный | N3: Карасунский | O3: Карасунский | P3: Карасунский | Q3: Карасунский | R3: Прикубанский | S3: Центральный | T3: Прикубанский | U3: Карасунский | V3: Западный | W3: Центральный | X3: Центральный | Y3: Карасунский | Z3: Прикубанский | AA3: Прикубанский | AB3: Центральный | AC3: Западный | AD3: Центральный | AE3: Западный
B4: Наименование раздела в меню сайта | C4: Наименование подраздела | D4: Критерий | E4: МБОУ ДО ДЮЦ | F4: МАУ ДО МЭЦ | G4: МБОУ ДО ЦРТДЮ | H4: МБОУ ДО ДДТ "Созвездие" | I4: МАОУДО ЦДТ "Прикубанский" | J4: МБОУ ДО ЦТ "Содружество" | K4: МБОУ ДО ДШИ "Юбилейная" | L4: МБОУ ДО ДШИ "Родник" | M4: МБОУ ДО ЦТР "Центральный" | N4: МБОУ ДО ДШИ "Овация" | O4: МБОУ ДО ЦДТТ "Юный техник" | P4: МБОУ ДО ДЦ "Автогородок" | Q4: МБОУ ДО ДМЦ | R4: МБОУ ДО ЦДТТ "Парус" | S4: МУ ДО "Малая академия" | T4: МБОУ ДО ЦДЮТ | U4: МАОУ ЦО ДО "Перспектива" | V4: МБОУ ДО ГДЮСШ | W4: МБОУ ДО ДЮСШ № 7 | X4: МБОУ ДО СДЮСШ № 1 | Y4: МБОУ ДО СШ № 1 | Z4: МАОУ ДО СШ № 6 | AA4: МБОУ ДО СШ № 8 | AB4: МБОУ ДО ДЮСШ № 2 | AC4: МБОУ ДО СШ № 4 | AD4: МБОУ ДО СШ № 3 | AE4: МБОУ ДО СШ "Юбилейная" | AF4: Обновленная информация | AG4: Обновленная информация, % | AH4: Неполная информация | AI4: Неполная информация,% | AJ4: Информация отсутствует | AK4: Информация отсутствует, % | AL4: Количество ОО
B5: Сведения об образовательной организации | C5: Основные сведения | D5: Полное наименование образовательной организации | E5: 2 | F5: 2 | G5: 2 | H5: 2 | I5: 2 | J5: 2 | K5: 2 | L5: 2 | M5: 2 | N5: 2 | O5: 2 | P5: 2 | Q5: 2 | R5: 2 | S5: 2 | T5: 2 | U5: 2 | V5: 2 | W5: 2 | X5: 2 | Y5: 2 | Z5: 2 | AA5: 2 | AB5: 2 | AC5: 2 | AD5: 2 | AE5: 2 | AF5: =COUNTIF(E5:AE5,2) -> 27 | AG5: =AF5*100%/AL5 -> 1 | AH5: =COUNTIF(E5:AE5,1) -> 0 | AI5: =AH5*100%/AL5 -> 0 | AJ5: =COUNTIF(E5:AE5,0) -> 0 | AK5: =AJ5*100%/AL5 -> 0 | AL5: =AF5+AH5+AJ5 -> 27
B6: Сведения об образовательной организации | C6: Основные сведения | D6: Краткое наименование образовательной организации | E6: 2 | F6: 2 | G6: 2 | H6: 2 | I6: 2 | J6: 2 | K6: 2 | L6: 2 | M6: 2 | N6: 2 | O6: 2 | P6: 2 | Q6: 2 | R6: 2 | S6: 2 | T6: 2 | U6: 2 | V6: 2 | W6: 2 | X6: 2 | Y6: 2 | Z6: 2 | AA6: 2 | AB6: 2 | AC6: 2 | AD6: 2 | AE6: 2 | AF6: =COUNTIF(E6:AE6,2) -> 27 | AG6: =AF6*100%/AL6 -> 1 | AH6: =COUNTIF(E6:AE6,1) -> 0 | AI6: =AH6*100%/AL6 -> 0 | AJ6: =COUNTIF(E6:AE6,0) -> 0 | AK6: =AJ6*100%/AL6 -> 0 | AL6: =AF6+AH6+AJ6 -> 27
B7: Сведения об образовательной организации | C7: Основные сведения | D7: Дата создания образовательной организации | E7: 2 | F7: 2 | G7: 2 | H7: 2 | I7: 2 | J7: 1 | K7: 2 | L7: 2 | M7: 2 | N7: 2 | O7: 2 | P7: 2 | Q7: 2 | R7: 2 | S7: 2 | T7: 2 | U7: 2 | V7: 2 | W7: 2 | X7: 2 | Y7: 2 | Z7: 2 | AA7: 2 | AB7: 2 | AC7: 2 | AD7: 2 | AE7: 2 | AF7: =COUNTIF(E7:AE7,2) -> 26 | AG7: 0.962962963 | AH7: =COUNTIF(E7:AE7,1) -> 1 | AI7: 0.03703703704 | AJ7: =COUNTIF(E7:AE7,0) -> 0 | AK7: 0 | AL7: 27
B8: Сведения об образовательной организации | C8: Основные сведения | D8: Учредитель (наименование, место нахождения, график работы, телефон, сайт, адрес электронной почты) | E8: 2 | F8: 2 | G8: 1 | H8: 1 | I8: 2 | J8: 1 | K8: 2 | L8: 1 | M8: 2 | N8: 1 | O8: 2 | P8: 1 | Q8: 2 | R8: 1 | S8: 2 | T8: 1 | U8: 2 | V8: 2 | W8: 2 | X8: 2 | Y8: 2 | Z8: 2 | AA8: 2 | AB8: 2 | AC8: 2 | AD8: 2 | AE8: 2 | AF8: =COUNTIF(E8:AE8,2) -> 19 | AG8: 0.7037037037 | AH8: =COUNTIF(E8:AE8,1) -> 8 | AI8: 0.2962962963 | AJ8: =COUNTIF(E8:AE8,0) -> 0 | AK8: 0 | AL8: 27
B9: Сведения об образовательной организации | C9: Основные сведения | D9: Адрес образовательной организации и её филиалов (при наличии) | E9: 2 | F9: 2 | G9: 2 | H9: 2 | I9: 2 | J9: 2 | K9: 2 | L9: 2 | M9: 2 | N9: 2 | O9: 2 | P9: 2 | Q9: 2 | R9: 2 | S9: 2 | T9: 2 | U9: 2 | V9: 2 | W9: 2 | X9: 2 | Y9: 2 | Z9: 2 | AA9: 2 | AB9: 2 | AC9: 2 | AD9: 2 | AE9: 2 | AF9: =COUNTIF(E9:AE9,2) -> 27 | AG9: 1 | AH9: =COUNTIF(E9:AE9,1) -> 0 | AI9: 0 | AJ9: =COUNTIF(E9:AE9,0) -> 0 | AK9: 0 | AL9: 27
B10: Сведения об образовательной организации | C10: Основные сведения | D10: Режим, график работы | E10: 2 | F10: 2 | G10: 2 | H10: 2 | I10: 2 | J10: 2 | K10: 2 | L10: 2 | M10: 0 | N10: 2 | O10: 1 | P10: 2 | Q10: 2 | R10: 1 | S10: 2 | T10: 1 | U10: 2 | V10: 2 | W10: 2 | X10: 2 | Y10: 2 | Z10: 2 | AA10: 2 | AB10: 2 | AC10: 2 | AD10: 2 | AE10: 2 | AF10: =COUNTIF(E10:AE10,2) -> 23 | AG10: 0.8518518519 | AH10: =COUNTIF(E10:AE10,1) -> 3 | AI10: 0.1111111111 | AJ10: =COUNTIF(E10:AE10,0) -> 1 | AK10: 0.03703703704 | AL10: 27
B11: Сведения об образовательной организации | C11: Основные сведения | D11: Телефон, факс | E11: 2 | F11: 2 | G11: 2 | H11: 2 | I11: 2 | J11: 2 | K11: 2 | L11: 2 | M11: 2 | N11: 2 | O11: 2 | P11: 2 | Q11: 2 | R11: 2 | S11: 2 | T11: 2 | U11: 2 | V11: 2 | W11: 2 | X11: 2 | Y11: 2 | Z11: 2 | AA11: 2 | AB11: 2 | AC11: 2 | AD11: 2 | AE11: 2 | AF11: =COUNTIF(E11:AE11,2) -> 27 | AG11: 1 | AH11: =COUNTIF(E11:AE11,1) -> 0 | AI11: 0 | AJ11: =COUNTIF(E11:AE11,0) -> 0 | AK11: 0 | AL11: 27
B12: Сведения об образовательной организации | C12: Основные сведения | D12: E-mail | E12: 2 | F12: 2 | G12: 2 | H12: 2 | I12: 2 | J12: 2 | K12: 2 | L12: 2 | M12: 2 | N12: 2 | O12: 2 | P12: 2 | Q12: 2 | R12: 2 | S12: 2 | T12: 2 | U12: 2 | V12: 2 | W12: 2 | X12: 2 | Y12: 2 | Z12: 2 | AA12: 2 | AB12: 2 | AC12: 2 | AD12: 2 | AE12: 2 | AF12: =COUNTIF(E12:AE12,2) -> 27 | AG12: 1 | AH12: =COUNTIF(E12:AE12,1) -> 0 | AI12: 0 | AJ12: =COUNTIF(E12:AE12,0) -> 0 | AK12: 0 | AL12: 27
B13: Сведения об образовательной организации | C13: Основные сведения | D13: Схема проезда | E13: 2 | F13: 2 | G13: 2 | H13: 2 | I13: 2 | J13: 2 | K13: 2 | L13: 2 | M13: 2 | N13: 2 | O13: 2 | P13: 2 | Q13: 2 | R13: 2 | S13: 2 | T13: 2 | U13: 2 | V13: 2 | W13: 2 | X13: 2 | Y13: 2 | Z13: 2 | AA13: 2 | AB13: 2 | AC13: 2 | AD13: 2 | AE13: 2 | AF13: =COUNTIF(E13:AE13,2) -> 27 | AG13: 1 | AH13: =COUNTIF(E13:AE13,1) -> 0 | AI13: 0 | AJ13: =COUNTIF(E13:AE13,0) -> 0 | AK13: 0 | AL13: 27
B14: Сведения об образовательной организации | C14: Структура и органы управления общеобразовательной организации | D14: Наименования органов управления | E14: 2 | F14: 2 | G14: 2 | H14: 2 | I14: 2 | J14: 2 | K14: 2 | L14: 2 | M14: 2 | N14: 2 | O14: 2 | P14: 2 | Q14: 2 | R14: 1 | S14: 2 | T14: 0 | U14: 2 | V14: 2 | W14: 2 | X14: 2 | Y14: 1 | Z14: 2 | AA14: 2 | AB14: 2 | AC14: 2 | AD14: 2 | AE14: 2 | AF14: =COUNTIF(E14:AE14,2) -> 24 | AG14: 0.8888888889 | AH14: =COUNTIF(E14:AE14,1) -> 2 | AI14: 0.07407407407 | AJ14: =COUNTIF(E14:AE14,0) -> 1 | AK14: 0.03703703704 | AL14: 27
B15: Сведения об образовательной организации | C15: Структура и органы управления общеобразовательной организации | D15: Положения об органах управления с приложением копий указанных положений (при их наличии) | E15: 2 | F15: 2 | G15: 1 | H15: 2 | I15: 2 | J15: 0 | K15: 2 | L15: 2 | M15: 2 | N15: 2 | O15: 2 | P15: 2 | Q15: 2 | R15: 2 | S15: 1 | T15: 0 | U15: 2 | V15: 2 | W15: 2 | X15: 2 | Y15: 2 | Z15: 2 | AA15: 2 | AB15: 2 | AC15: 2 | AD15: 2 | AE15: 2 | AF15: =COUNTIF(E15:AE15,2) -> 23 | AG15: 0.8518518519 | AH15: =COUNTIF(E15:AE15,1) -> 2 | AI15: 0.07407407407 | AJ15: =COUNTIF(E15:AE15,0) -> 2 | AK15: 0.07407407407 | AL15: 27
B16: Сведения об образовательной организации | C16: Структура и органы управления общеобразовательной организации | D16: Наименования структурных подразделений (филиалы и др.) | E16: 2 | F16: 2 | G16: 2 | H16: 2 | I16: 2 | J16: 1 | K16: 2 | L16: 2 | M16: 2 | N16: 2 | O16: 2 | P16: 2 | Q16: 2 | R16: 2 | S16: 2 | T16: 2 | U16: 2 | V16: 2 | W16: 2 | X16: 2 | Y16: 2 | Z16: 2 | AA16: 2 | AB16: 2 | AC16: 2 | AD16: 2 | AE16: 2 | AF16: =COUNTIF(E16:AE16,2) -> 26 | AG16: 0.962962963 | AH16: =COUNTIF(E16:AE16,1) -> 1 | AI16: 0.03703703704 | AJ16: =COUNTIF(E16:AE16,0) -> 0 | AK16: 0 | AL16: 27
B17: Сведения об образовательной организации | C17: Структура и органы управления общеобразовательной организации | D17: ФИО и должности руководителей структурных подразделений | E17: 2 | F17: 2 | G17: 2 | H17: 2 | I17: 2 | J17: 1 | K17: 2 | L17: 2 | M17: 2 | N17: 2 | O17: 2 | P17: 2 | Q17: 2 | R17: 2 | S17: 2 | T17: 2 | U17: 2 | V17: 2 | W17: 2 | X17: 2 | Y17: 2 | Z17: 2 | AA17: 2 | AB17: 2 | AC17: 2 | AD17: 2 | AE17: 2 | AF17: =COUNTIF(E17:AE17,2) -> 26 | AG17: 0.962962963 | AH17: =COUNTIF(E17:AE17,1) -> 1 | AI17: 0.03703703704 | AJ17: =COUNTIF(E17:AE17,0) -> 0 | AK17: 0 | AL17: 27
B18: Сведения об образовательной организации | C18: Структура и органы управления общеобразовательной организации | D18: Места нахождения структурных подразделений | E18: 2 | F18: 2 | G18: 2 | H18: 2 | I18: 2 | J18: 1 | K18: 2 | L18: 2 | M18: 2 | N18: 2 | O18: 2 | P18: 2 | Q18: 2 | R18: 2 | S18: 2 | T18: 2 | U18: 2 | V18: 2 | W18: 2 | X18: 2 | Y18: 2 | Z18: 2 | AA18: 2 | AB18: 2 | AC18: 2 | AD18: 2 | AE18: 2 | AF18: =COUNTIF(E18:AE18,2) -> 26 | AG18: 0.962962963 | AH18: =COUNTIF(E18:AE18,1) -> 1 | AI18: 0.03703703704 | AJ18: =COUNTIF(E18:AE18,0) -> 0 | AK18: 0 | AL18: 27
B19: Сведения об образовательной организации | C19: Структура и органы управления общеобразовательной организации | D19: Сведения о наличии положений о структурных подразделениях, с приложением копий указанных положений (при их наличии) | E19: 2 | F19: 2 | G19: 2 | H19: 2 | I19: 2 | J19: 0 | K19: 2 | L19: 2 | M19: 2 | N19: 2 | O19: 2 | P19: 2 | Q19: 2 | R19: 2 | S19: 2 | T19: 2 | U19: 2 | V19: 2 | W19: 2 | X19: 2 | Y19: 2 | Z19: 2 | AA19: 2 | AB19: 2 | AC19: 2 | AD19: 2 | AE19: 2 | AF19: =COUNTIF(E19:AE19,2) -> 26 | AG19: 0.962962963 | AH19: =COUNTIF(E19:AE19,1) -> 0 | AI19: 0 | AJ19: =COUNTIF(E19:AE19,0) -> 1 | AK19: 0.03703703704 | AL19: 27
B20: Сведения об образовательной организации | C20: Документы | D20: Копия Устава, изменения и дополнения к Уставу | E20: 2 | F20: 2 | G20: 2 | H20: 2 | I20: 2 | J20: 2 | K20: 2 | L20: 2 | M20: 2 | N20: 2 | O20: 2 | P20: 2 | Q20: 2 | R20: 2 | S20: 2 | T20: 2 | U20: 2 | V20: 2 | W20: 2 | X20: 2 | Y20: 1 | Z20: 2 | AA20: 2 | AB20: 2 | AC20: 2 | AD20: 2 | AE20: 2 | AF20: =COUNTIF(E20:AE20,2) -> 26 | AG20: 0.962962963 | AH20: =COUNTIF(E20:AE20,1) -> 1 | AI20: 0.03703703704 | AJ20: =COUNTIF(E20:AE20,0) -> 0 | AK20: 0 | AL20: 27
B21: Сведения об образовательной организации | C21: Документы | D21: Копия лицензии на осуществление образовательной деятельности (с приложениями) | E21: 2 | F21: 2 | G21: 2 | H21: 2 | I21: 2 | J21: 2 | K21: 2 | L21: 2 | M21: 2 | N21: 2 | O21: 2 | P21: 2 | Q21: 2 | R21: 2 | S21: 2 | T21: 2 | U21: 2 | V21: 2 | W21: 2 | X21: 2 | Y21: 2 | Z21: 2 | AA21: 2 | AB21: 2 | AC21: 2 | AD21: 2 | AE21: 2 | AF21: =COUNTIF(E21:AE21,2) -> 27 | AG21: 1 | AH21: =COUNTIF(E21:AE21,1) -> 0 | AI21: 0 | AJ21: =COUNTIF(E21:AE21,0) -> 0 | AK21: 0 | AL21: 27
B22: Сведения об образовательной организации | C22: Документы | D22: Копия плана финансово-хозяйственной деятельности образовательной организации, утвержденного в установленном законодательством РФ порядке, или бюджетные сметы образовательной организации | E22: 2 | F22: 2 | G22: 2 | H22: 2 | I22: 2 | J22: 0 | K22: 2 | L22: 2 | M22: 2 | N22: 2 | O22: 2 | P22: 2 | Q22: 2 | R22: 0 | S22: 2 | T22: 2 | U22: 0 | V22: 2 | W22: 2 | X22: 2 | Y22: 2 | Z22: 2 | AA22: 2 | AB22: 0 | AC22: 2 | AD22: 2 | AE22: 2 | AF22: =COUNTIF(E22:AE22,2) -> 23 | AG22: 0.8518518519 | AH22: =COUNTIF(E22:AE22,1) -> 0 | AI22: 0 | AJ22: =COUNTIF(E22:AE22,0) -> 4 | AK22: 0.1481481481 | AL22: 27
B23: Сведения об образовательной организации | C23: Документы. Локальные нормативные акты | D23: Регламентирующие правила приема обучающихся | E23: 2 | F23: 2 | G23: 2 | H23: 2 | I23: 2 | J23: 2 | K23: 2 | L23: 2 | M23: 2 | N23: 2 | O23: 2 | P23: 2 | Q23: 2 | R23: 2 | S23: 2 | T23: 2 | U23: 2 | V23: 2 | W23: 2 | X23: 2 | Y23: 2 | Z23: 2 | AA23: 2 | AB23: 2 | AC23: 2 | AD23: 2 | AE23: 2 | AF23: =COUNTIF(E23:AE23,2) -> 27 | AG23: 1 | AH23: =COUNTIF(E23:AE23,1) -> 0 | AI23: 0 | AJ23: =COUNTIF(E23:AE23,0) -> 0 | AK23: 0 | AL23: 27
B24: Сведения об образовательной организации | C24: Документы. Локальные нормативные акты | D24: Режим занятий обучающихся | E24: 2 | F24: 2 | G24: 2 | H24: 2 | I24: 2 | J24: 2 | K24: 2 | L24: 2 | M24: 2 | N24: 2 | O24: 2 | P24: 2 | Q24: 2 | R24: 2 | S24: 2 | T24: 0 | U24: 1 | V24: 0 | W24: 2 | X24: 1 | Y24: 0 | Z24: 0 | AA24: 2 | AB24: 2 | AC24: 2 | AD24: 2 | AE24: 2 | AF24: =COUNTIF(E24:AE24,2) -> 21 | AG24: 0.7777777778 | AH24: =COUNTIF(E24:AE24,1) -> 2 | AI24: 0.07407407407 | AJ24: =COUNTIF(E24:AE24,0) -> 4 | AK24: 0.1481481481 | AL24: 27
B25: Сведения об образовательной организации | C25: Документы. Локальные нормативные акты | D25: Формы, периодичность и порядок текущего контроля успеваемости и промежуточной аттестации обучающихся | E25: 2 | F25: 2 | G25: 2 | H25: 2 | I25: 2 | J25: 2 | K25: 2 | L25: 2 | M25: 2 | N25: 2 | O25: 2 | P25: 2 | Q25: 2 | R25: 2 | S25: 0 | T25: 1 | U25: 2 | V25: 2 | W25: 2 | X25: 2 | Y25: 2 | Z25: 2 | AA25: 2 | AB25: 2 | AC25: 2 | AD25: 0 | AE25: 2 | AF25: =COUNTIF(E25:AE25,2) -> 24 | AG25: 0.8888888889 | AH25: =COUNTIF(E25:AE25,1) -> 1 | AI25: 0.03703703704 | AJ25: =COUNTIF(E25:AE25,0) -> 2 | AK25: 0.07407407407 | AL25: 27
B26: Сведения об образовательной организации | C26: Документы. Локальные нормативные акты | D26: Порядок и основания перевода, отчисления и восстановления обучающихся | E26: 2 | F26: 2 | G26: 0 | H26: 2 | I26: 2 | J26: 2 | K26: 0 | L26: 2 | M26: 2 | N26: 2 | O26: 2 | P26: 2 | Q26: 2 | R26: 2 | S26: 0 | T26: 0 | U26: 2 | V26: 2 | W26: 2 | X26: 2 | Y26: 2 | Z26: 1 | AA26: 2 | AB26: 2 | AC26: 2 | AD26: 2 | AE26: 2 | AF26: =COUNTIF(E26:AE26,2) -> 22 | AG26: 0.8148148148 | AH26: =COUNTIF(E26:AE26,1) -> 1 | AI26: 0.03703703704 | AJ26: =COUNTIF(E26:AE26,0) -> 4 | AK26: 0.1481481481 | AL26: 27
B27: Сведения об образовательной организации | C27: Документы. Локальные нормативные акты | D27: Порядок оформления возникновения, приостановления и прекращения отношений между образовательной организацией и обучающимися и (или) родителями (законными представителями) несовершеннолетних обучающихся | E27: 2 | F27: 2 | G27: 2 | H27: 2 | I27: 2 | J27: 2 | K27: 2 | L27: 2 | M27: 2 | N27: 2 | O27: 2 | P27: 2 | Q27: 2 | R27: 1 | S27: 1 | T27: 0 | U27: 0 | V27: 2 | W27: 2 | X27: 2 | Y27: 2 | Z27: 2 | AA27: 2 | AB27: 2 | AC27: 2 | AD27: 2 | AE27: 2 | AF27: =COUNTIF(E27:AE27,2) -> 23 | AG27: 0.8518518519 | AH27: =COUNTIF(E27:AE27,1) -> 2 | AI27: 0.07407407407 | AJ27: =COUNTIF(E27:AE27,0) -> 2 | AK27: 0.07407407407 | AL27: 27
B28: Сведения об образовательной организации | C28: Документы. Локальные нормативные акты | D28: Правила внутреннего распорядка обучающихся | E28: 2 | F28: 2 | G28: 1 | H28: 2 | I28: 2 | J28: 1 | K28: 2 | L28: 2 | M28: 2 | N28: 2 | O28: 2 | P28: 2 | Q28: 2 | R28: 2 | S28: 2 | T28: 0 | U28: 2 | V28: 2 | W28: 2 | X28: 2 | Y28: 2 | Z28: 2 | AA28: 2 | AB28: 2 | AC28: 2 | AD28: 2 | AE28: 2 | AF28: =COUNTIF(E28:AE28,2) -> 24 | AG28: 0.8888888889 | AH28: =COUNTIF(E28:AE28,1) -> 2 | AI28: 0.07407407407 | AJ28: =COUNTIF(E28:AE28,0) -> 1 | AK28: 0.03703703704 | AL28: 27
B29: Сведения об образовательной организации | C29: Документы. Локальные нормативные акты | D29: Правила внутреннего трудового распорядка | E29: 2 | F29: 2 | G29: 2 | H29: 2 | I29: 2 | J29: 1 | K29: 2 | L29: 2 | M29: 2 | N29: 2 | O29: 2 | P29: 1 | Q29: 2 | R29: 0 | S29: 2 | T29: 2 | U29: 2 | V29: 2 | W29: 2 | X29: 0 | Y29: 2 | Z29: 2 | AA29: 2 | AB29: 2 | AC29: 2 | AD29: 2 | AE29: 2 | AF29: =COUNTIF(E29:AE29,2) -> 23 | AG29: 0.8518518519 | AH29: =COUNTIF(E29:AE29,1) -> 2 | AI29: 0.07407407407 | AJ29: =COUNTIF(E29:AE29,0) -> 2 | AK29: 0.07407407407 | AL29: 27
B30: Сведения об образовательной организации | C30: Документы. Локальные нормативные акты | D30: Коллективный договор | E30: 2 | F30: 2 | G30: 0 | H30: 2 | I30: 2 | J30: 2 | K30: 2 | L30: 1 | M30: 2 | N30: 0 | O30: 2 | P30: 2 | Q30: 2 | R30: 1 | S30: 0 | T30: 2 | U30: 2 | V30: 2 | W30: 2 | X30: 2 | Y30: 2 | Z30: 2 | AA30: 2 | AB30: 2 | AC30: 1 | AD30: 2 | AE30: 2 | AF30: =COUNTIF(E30:AE30,2) -> 21 | AG30: 0.7777777778 | AH30: =COUNTIF(E30:AE30,1) -> 3 | AI30: 0.1111111111 | AJ30: =COUNTIF(E30:AE30,0) -> 3 | AK30: 0.1111111111 | AL30: 27
B31: Сведения об образовательной организации | C31: Документы. Локальные нормативные акты | D31: Положение о сайте образовательной организации | E31: 1 | F31: 2 | G31: 1 | H31: 1 | I31: 1 | J31: 1 | K31: 1 | L31: 2 | M31: 1 | N31: 1 | O31: 1 | P31: 1 | Q31: 2 | R31: 1 | S31: 1 | T31: 1 | U31: 1 | V31: 2 | W31: 2 | X31: 1 | Y31: 2 | Z31: 1 | AA31: 2 | AB31: 1 | AC31: 1 | AD31: 1 | AE31: 2 | AF31: =COUNTIF(E31:AE31,2) -> 8 | AG31: 0.2962962963 | AH31: =COUNTIF(E31:AE31,1) -> 19 | AI31: 0.7037037037 | AJ31: =COUNTIF(E31:AE31,0) -> 0 | AK31: 0 | AL31: 27
B32: Сведения об образовательной организации | C32: Документы. Локальные нормативные акты | D32: Приказы, положения, должностные инструкции | E32: 2 | F32: 2 | G32: 2 | H32: 2 | I32: 2 | J32: 2 | K32: 2 | L32: 2 | M32: 2 | N32: 2 | O32: 2 | P32: 2 | Q32: 2 | R32: 2 | S32: 2 | T32: 2 | U32: 2 | V32: 2 | W32: 2 | X32: 2 | Y32: 2 | Z32: 2 | AA32: 2 | AB32: 2 | AC32: 2 | AD32: 2 | AE32: 1 | AF32: =COUNTIF(E32:AE32,2) -> 26 | AG32: 0.962962963 | AH32: =COUNTIF(E32:AE32,1) -> 1 | AI32: 0.03703703704 | AJ32: =COUNTIF(E32:AE32,0) -> 0 | AK32: 0 | AL32: 27
B33: Сведения об образовательной организации | C33: Документы. Результаты самообследования | D33: Отчёт о результатах самообследования за предшествующий календарный год | E33: 2 | F33: 2 | G33: 1 | H33: 2 | I33: 2 | J33: 0 | K33: 2 | L33: 2 | M33: 2 | N33: 2 | O33: 2 | P33: 2 | Q33: 2 | R33: 2 | S33: 2 | T33: 0 | U33: 0 | V33: 2 | W33: 2 | X33: 1 | Y33: 0 | Z33: 2 | AA33: 2 | AB33: 1 | AC33: 1 | AD33: 2 | AE33: 2 | AF33: =COUNTIF(E33:AE33,2) -> 19 | AG33: 0.7037037037 | AH33: =COUNTIF(E33:AE33,1) -> 4 | AI33: 0.1481481481 | AJ33: =COUNTIF(E33:AE33,0) -> 4 | AK33: 0.1481481481 | AL33: 27
B34: Сведения об образовательной организации | C34: Документы. Результаты самообследования | D34: Наличие доп. показателей самообследования за предшествующий календарный год, необходимых для проведения НОКО | E34: 2 | F34: 2 | G34: 2 | H34: 2 | I34: 1 | J34: 2 | K34: 2 | L34: 2 | M34: 2 | N34: 2 | O34: 1 | P34: 2 | Q34: 1 | R34: 1 | S34: 1 | T34: 2 | U34: 2 | V34: 2 | W34: 2 | X34: 1 | Y34: 1 | Z34: 2 | AA34: 0 | AB34: 1 | AC34: 2 | AD34: 2 | AE34: 2 | AF34: =COUNTIF(E34:AE34,2) -> 18 | AG34: 0.6666666667 | AH34: =COUNTIF(E34:AE34,1) -> 8 | AI34: 0.2962962963 | AJ34: =COUNTIF(E34:AE34,0) -> 1 | AK34: 0.03703703704 | AL34: 27
B35: Сведения об образовательной организации | C35: Документы. Результаты самообследования | D35: Публичный доклад за предшествующий учебный год | E35: 2 | F35: 1 | G35: 0 | H35: 2 | I35: 1 | J35: 0 | K35: 1 | L35: 2 | M35: 0 | N35: 0 | O35: 0 | P35: 0 | Q35: 2 | R35: 0 | S35: 1 | T35: 0 | U35: 0 | V35: 1 | W35: 2 | X35: 0 | Y35: 0 | Z35: 2 | AA35: 0 | AB35: 0 | AC35: 0 | AD35: 0 | AE35: 2 | AF35: =COUNTIF(E35:AE35,2) -> 7 | AG35: 0.2592592593 | AH35: =COUNTIF(E35:AE35,1) -> 5 | AI35: 0.1851851852 | AJ35: =COUNTIF(E35:AE35,0) -> 15 | AK35: 0.5555555556 | AL35: 27
B36: Сведения об образовательной организации | C36: Документы. Противодействие коррупции | D36: Горячая линия | E36: 2 | F36: 2 | G36: 2 | H36: 2 | I36: 2 | J36: 2 | K36: 2 | L36: 2 | M36: 2 | N36: 2 | O36: 2 | P36: 2 | Q36: 2 | R36: 2 | S36: 1 | T36: 0 | U36: 2 | V36: 2 | W36: 2 | X36: 2 | Y36: 2 | Z36: 2 | AA36: 2 | AB36: 2 | AC36: 2 | AD36: 2 | AE36: 2 | AF36: =COUNTIF(E36:AE36,2) -> 25 | AG36: 0.9259259259 | AH36: =COUNTIF(E36:AE36,1) -> 1 | AI36: 0.03703703704 | AJ36: =COUNTIF(E36:AE36,0) -> 1 | AK36: 0.03703703704 | AL36: 27
B37: Сведения об образовательной организации | C37: Документы. Противодействие коррупции | D37: Локальный акт о порядке пожертвований от граждан и юридических лиц | E37: 2 | F37: 2 | G37: 2 | H37: 2 | I37: 2 | J37: 2 | K37: 2 | L37: 2 | M37: 2 | N37: 2 | O37: 1 | P37: 2 | Q37: 2 | R37: 1 | S37: 2 | T37: 2 | U37: 0 | V37: 2 | W37: 2 | X37: 2 | Y37: 2 | Z37: 2 | AA37: 2 | AB37: 2 | AC37: 0 | AD37: 2 | AE37: 2 | AF37: =COUNTIF(E37:AE37,2) -> 23 | AG37: 0.8518518519 | AH37: =COUNTIF(E37:AE37,1) -> 2 | AI37: 0.07407407407 | AJ37: =COUNTIF(E37:AE37,0) -> 2 | AK37: 0.07407407407 | AL37: 27
B38: Сведения об образовательной организации | C38: Документы. Противодействие коррупции | D38: Ссылка на реквизиты расчетного счета, на который поступают пожертвования | E38: 2 | F38: 2 | G38: 2 | H38: 2 | I38: 2 | J38: 2 | K38: 2 | L38: 2 | M38: 2 | N38: 2 | O38: 2 | P38: 2 | Q38: 2 | R38: 2 | S38: 2 | T38: 2 | U38: 0 | V38: 2 | W38: 2 | X38: 2 | Y38: 2 | Z38: 2 | AA38: 2 | AB38: 2 | AC38: 0 | AD38: 2 | AE38: 2 | AF38: =COUNTIF(E38:AE38,2) -> 25 | AG38: 0.9259259259 | AH38: =COUNTIF(E38:AE38,1) -> 0 | AI38: 0 | AJ38: =COUNTIF(E38:AE38,0) -> 2 | AK38: 0.07407407407 | AL38: 27
B39: Сведения об образовательной организации | C39: Документы. Противодействие коррупции | D39: Отчет о расходовании пожертвований и целевых взносов физических и юридических лиц | E39: 2 | F39: 2 | G39: 0 | H39: 1 | I39: 2 | J39: 0 | K39: 2 | L39: 2 | M39: 2 | N39: 1 | O39: 0 | P39: 2 | Q39: 2 | R39: 0 | S39: 2 | T39: 2 | U39: 1 | V39: 2 | W39: 0 | X39: 0 | Y39: 2 | Z39: 2 | AA39: 2 | AB39: 2 | AC39: 0 | AD39: 2 | AE39: 2 | AF39: =COUNTIF(E39:AE39,2) -> 17 | AG39: 0.6296296296 | AH39: =COUNTIF(E39:AE39,1) -> 3 | AI39: 0.1111111111 | AJ39: =COUNTIF(E39:AE39,0) -> 7 | AK39: 0.2592592593 | AL39: 27
B40: Сведения об образовательной организации | C40: Документы. Оказание платных образовательных услуг | D40: Документ о порядке оказания платных образовательных услуг | E40: 2 | F40: 2 | G40: 2 | H40: 2 | I40: 2 | J40: 2 | K40: 2 | L40: 2 | M40: 2 | N40: 2 | O40: 2 | P40: 0 | Q40: 2 | R40: 2 | S40: 2 | T40: 2 | U40: 0 | V40: 2 | W40: 2 | X40: 2 | Y40: 2 | Z40: 2 | AA40: 2 | AB40: 2 | AC40: 2 | AD40: 2 | AE40: 2 | AF40: =COUNTIF(E40:AE40,2) -> 25 | AG40: 0.9259259259 | AH40: =COUNTIF(E40:AE40,1) -> 0 | AI40: 0 | AJ40: =COUNTIF(E40:AE40,0) -> 2 | AK40: 0.07407407407 | AL40: 27
B41: Сведения об образовательной организации | C41: Документы. Оказание платных образовательных услуг | D41: Образец договора об оказании платных образовательных услуг | E41: 2 | F41: 2 | G41: 2 | H41: 2 | I41: 2 | J41: 2 | K41: 2 | L41: 2 | M41: 2 | N41: 2 | O41: 2 | P41: 2 | Q41: 2 | R41: 2 | S41: 0 | T41: 2 | U41: 0 | V41: 2 | W41: 2 | X41: 2 | Y41: 2 | Z41: 2 | AA41: 2 | AB41: 2 | AC41: 2 | AD41: 0 | AE41: 2 | AF41: =COUNTIF(E41:AE41,2) -> 24 | AG41: 0.8888888889 | AH41: =COUNTIF(E41:AE41,1) -> 0 | AI41: 0 | AJ41: =COUNTIF(E41:AE41,0) -> 3 | AK41: 0.1111111111 | AL41: 27
B42: Сведения об образовательной организации | C42: Документы. Оказание платных образовательных услуг | D42: Документ об утверждении стоимости обучения по каждой образовательной программе | E42: 2 | F42: 2 | G42: 2 | H42: 2 | I42: 2 | J42: 2 | K42: 2 | L42: 2 | M42: 2 | N42: 2 | O42: 2 | P42: 2 | Q42: 2 | R42: 2 | S42: 0 | T42: 2 | U42: 0 | V42: 2 | W42: 2 | X42: 2 | Y42: 2 | Z42: 2 | AA42: 2 | AB42: 2 | AC42: 2 | AD42: 0 | AE42: 2 | AF42: =COUNTIF(E42:AE42,2) -> 24 | AG42: 0.8888888889 | AH42: =COUNTIF(E42:AE42,1) -> 0 | AI42: 0 | AJ42: =COUNTIF(E42:AE42,0) -> 3 | AK42: 0.1111111111 | AL42: 27
B43: Сведения об образовательной организации | C43: Документы. Результаты проверок | D43: Предписания органов, осуществляющих государственный контроль (надзор) в сфере образования, отчёты об исполнении таких предписаний | E43: 2 | F43: 2 | G43: 2 | H43: 2 | I43: 2 | J43: 1 | K43: 2 | L43: 2 | M43: 2 | N43: 2 | O43: 2 | P43: 2 | Q43: 2 | R43: 2 | S43: 2 | T43: 2 | U43: 2 | V43: 2 | W43: 2 | X43: 2 | Y43: 1 | Z43: 2 | AA43: 0 | AB43: 2 | AC43: 2 | AD43: 2 | AE43: 2 | AF43: =COUNTIF(E43:AE43,2) -> 24 | AG43: 0.8888888889 | AH43: =COUNTIF(E43:AE43,1) -> 2 | AI43: 0.07407407407 | AJ43: =COUNTIF(E43:AE43,0) -> 1 | AK43: 0.03703703704 | AL43: 27
B44: Сведения об образовательной организации | C44: Документы. Обработка персональных данных | D44: Приказ о назначении ответственного за организацию обработки персональных данных в ОО | E44: 2 | F44: 2 | G44: 2 | H44: 2 | I44: 2 | J44: 2 | K44: 2 | L44: 2 | M44: 2 | N44: 2 | O44: 2 | P44: 2 | Q44: 2 | R44: 0 | S44: 2 | T44: 2 | U44: 2 | V44: 2 | W44: 2 | X44: 2 | Y44: 2 | Z44: 2 | AA44: 2 | AB44: 2 | AC44: 2 | AD44: 2 | AE44: 2 | AF44: =COUNTIF(E44:AE44,2) -> 26 | AG44: 0.962962963 | AH44: =COUNTIF(E44:AE44,1) -> 0 | AI44: 0 | AJ44: =COUNTIF(E44:AE44,0) -> 1 | AK44: 0.03703703704 | AL44: 27
B45: Сведения об образовательной организации | C45: Документы. Обработка персональных данных | D45: Правила (положение) обработки персональных данных, утвержденные руководителем ОО | E45: 2 | F45: 2 | G45: 2 | H45: 2 | I45: 2 | J45: 1 | K45: 2 | L45: 2 | M45: 2 | N45: 2 | O45: 2 | P45: 2 | Q45: 2 | R45: 0 | S45: 2 | T45: 1 | U45: 0 | V45: 2 | W45: 2 | X45: 2 | Y45: 2 | Z45: 2 | AA45: 2 | AB45: 2 | AC45: 2 | AD45: 2 | AE45: 2 | AF45: =COUNTIF(E45:AE45,2) -> 23 | AG45: 0.8518518519 | AH45: =COUNTIF(E45:AE45,1) -> 2 | AI45: 0.07407407407 | AJ45: =COUNTIF(E45:AE45,0) -> 2 | AK45: 0.07407407407 | AL45: 27
B46: Сведения об образовательной организации | C46: Документы. Обработка персональных данных | D46: Типовая форма согласия на обработку персональных данных работников и обучающихся (воспитанников), в соответствии со ст. 18.1. Федерального закона от 27.07.2006 № 152-ФЗ «О персональных данных» | E46: 2 | F46: 2 | G46: 2 | H46: 2 | I46: 2 | J46: 2 | K46: 2 | L46: 2 | M46: 2 | N46: 2 | O46: 2 | P46: 2 | Q46: 2 | R46: 0 | S46: 2 | T46: 1 | U46: 2 | V46: 2 | W46: 2 | X46: 2 | Y46: 2 | Z46: 2 | AA46: 2 | AB46: 2 | AC46: 2 | AD46: 2 | AE46: 2 | AF46: =COUNTIF(E46:AE46,2) -> 25 | AG46: 0.9259259259 | AH46: =COUNTIF(E46:AE46,1) -> 1 | AI46: 0.03703703704 | AJ46: =COUNTIF(E46:AE46,0) -> 1 | AK46: 0.03703703704 | AL46: 27
B47: Сведения об образовательной организации | C47: Образование | D47: Реализуемые уровни образования | E47: 2 | F47: 2 | G47: 2 | H47: 2 | I47: 2 | J47: 2 | K47: 2 | L47: 2 | M47: 2 | N47: 2 | O47: 2 | P47: 2 | Q47: 2 | R47: 2 | S47: 0 | T47: 2 | U47: 2 | V47: 2 | W47: 2 | X47: 2 | Y47: 2 | Z47: 2 | AA47: 2 | AB47: 2 | AC47: 2 | AD47: 2 | AE47: 2 | AF47: =COUNTIF(E47:AE47,2) -> 26 | AG47: 0.962962963 | AH47: =COUNTIF(E47:AE47,1) -> 0 | AI47: 0 | AJ47: =COUNTIF(E47:AE47,0) -> 1 | AK47: 0.03703703704 | AL47: 27
B48: Сведения об образовательной организации | C48: Образование | D48: Форма получения образования и форма обучения | E48: 2 | F48: 2 | G48: 2 | H48: 2 | I48: 2 | J48: 2 | K48: 2 | L48: 2 | M48: 2 | N48: 2 | O48: 2 | P48: 0 | Q48: 2 | R48: 2 | S48: 2 | T48: 2 | U48: 2 | V48: 2 | W48: 2 | X48: 2 | Y48: 2 | Z48: 2 | AA48: 2 | AB48: 2 | AC48: 2 | AD48: 2 | AE48: 2 | AF48: =COUNTIF(E48:AE48,2) -> 26 | AG48: 0.962962963 | AH48: =COUNTIF(E48:AE48,1) -> 0 | AI48: 0 | AJ48: =COUNTIF(E48:AE48,0) -> 1 | AK48: 0.03703703704 | AL48: 27
B49: Сведения об образовательной организации | C49: Образование | D49: Нормативные сроки обучения | E49: 2 | F49: 2 | G49: 2 | H49: 2 | I49: 2 | J49: 2 | K49: 2 | L49: 2 | M49: 2 | N49: 2 | O49: 2 | P49: 2 | Q49: 2 | R49: 2 | S49: 2 | T49: 2 | U49: 2 | V49: 2 | W49: 2 | X49: 2 | Y49: 2 | Z49: 2 | AA49: 2 | AB49: 2 | AC49: 2 | AD49: 2 | AE49: 2 | AF49: =COUNTIF(E49:AE49,2) -> 27 | AG49: 1 | AH49: =COUNTIF(E49:AE49,1) -> 0 | AI49: 0 | AJ49: =COUNTIF(E49:AE49,0) -> 0 | AK49: 0 | AL49: 27
B50: Сведения об образовательной организации | C50: Образование | D50: Описание образовательной программы с приложением её копии. | E50: 0 | F50: 2 | G50: 0 | H50: 2 | I50: 2 | J50: 0 | K50: 0 | L50: 2 | M50: 1 | N50: 2 | O50: 0 | P50: 0 | Q50: 1 | R50: 0 | S50: 1 | T50: 0 | U50: 0 | V50: 0 | W50: 1 | X50: 0 | Y50: 0 | Z50: 0 | AA50: 2 | AB50: 1 | AC50: 0 | AD50: 2 | AE50: 1 | AF50: =COUNTIF(E50:AE50,2) -> 7 | AG50: 0.2592592593 | AH50: =COUNTIF(E50:AE50,1) -> 6 | AI50: 0.2222222222 | AJ50: =COUNTIF(E50:AE50,0) -> 14 | AK50: 0.5185185185 | AL50: 27
B51: Сведения об образовательной организации | C51: Образование | D51: Информация о реализуемых дополнительных образовательных программах с указанием учебных предметов, курсов, дисциплин (модулей), практики, предусмотренных соответствующей образовательной программой | E51: 2 | F51: 2 | G51: 0 | H51: 2 | I51: 2 | J51: 2 | K51: 0 | L51: 2 | M51: 2 | N51: 2 | O51: 2 | P51: 2 | Q51: 2 | R51: 2 | S51: 0 | T51: 0 | U51: 1 | V51: 2 | W51: 2 | X51: 2 | Y51: 2 | Z51: 2 | AA51: 2 | AB51: 2 | AC51: 2 | AD51: 2 | AE51: 2 | AF51: =COUNTIF(E51:AE51,2) -> 22 | AG51: 0.8148148148 | AH51: =COUNTIF(E51:AE51,1) -> 1 | AI51: 0.03703703704 | AJ51: =COUNTIF(E51:AE51,0) -> 4 | AK51: 0.1481481481 | AL51: 27
B52: Сведения об образовательной организации | C52: Образование | D52: Использование при реализации указанных образовательных программ электронного обучения и дистанционных образовательных технологий | E52: 0 | F52: 2 | G52: 0 | H52: 2 | I52: 2 | J52: 2 | K52: 0 | L52: 2 | M52: 2 | N52: 2 | O52: 0 | P52: 2 | Q52: 0 | R52: 0 | S52: 0 | T52: 0 | U52: 0 | V52: 2 | W52: 2 | X52: 1 | Y52: 0 | Z52: 2 | AA52: 2 | AB52: 2 | AC52: 2 | AD52: 2 | AE52: 2 | AF52: =COUNTIF(E52:AE52,2) -> 16 | AG52: 0.5925925926 | AH52: =COUNTIF(E52:AE52,1) -> 1 | AI52: 0.03703703704 | AJ52: =COUNTIF(E52:AE52,0) -> 10 | AK52: 0.3703703704 | AL52: 27
B53: Сведения об образовательной организации | C53: Образование | D53: Численность обучающихся по реализуемым дополнительным образовательным программам за счет бюджетных ассигнований федерального бюджета, бюджетов субъектов РФ, местных бюджетов и по договорам об образовании за счет средств фических и (или) юридических лиц | E53: 2 | F53: 2 | G53: 2 | H53: 2 | I53: 2 | J53: 2 | K53: 2 | L53: 2 | M53: 2 | N53: 2 | O53: 2 | P53: 2 | Q53: 2 | R53: 2 | S53: 2 | T53: 2 | U53: 2 | V53: 2 | W53: 2 | X53: 2 | Y53: 2 | Z53: 2 | AA53: 2 | AB53: 2 | AC53: 2 | AD53: 2 | AE53: 2 | AF53: =COUNTIF(E53:AE53,2) -> 27 | AG53: 1 | AH53: =COUNTIF(E53:AE53,1) -> 0 | AI53: 0 | AJ53: =COUNTIF(E53:AE53,0) -> 0 | AK53: 0 | AL53: 27
B54: Сведения об образовательной организации | C54: Образование | D54: Язык, на котором осуществляется образование (обучение) | E54: 2 | F54: 2 | G54: 2 | H54: 2 | I54: 2 | J54: 2 | K54: 2 | L54: 2 | M54: 2 | N54: 2 | O54: 2 | P54: 2 | Q54: 2 | R54: 2 | S54: 2 | T54: 2 | U54: 2 | V54: 2 | W54: 2 | X54: 2 | Y54: 2 | Z54: 2 | AA54: 2 | AB54: 2 | AC54: 2 | AD54: 2 | AE54: 2 | AF54: =COUNTIF(E54:AE54,2) -> 27 | AG54: 1 | AH54: =COUNTIF(E54:AE54,1) -> 0 | AI54: 0 | AJ54: =COUNTIF(E54:AE54,0) -> 0 | AK54: 0 | AL54: 27
B55: Сведения об образовательной организации | C55: Образование | D55: Описание дополнительной образовательной программы с приложением ее копии | E55: 1 | F55: 2 | G55: 0 | H55: 2 | I55: 2 | J55: 2 | K55: 0 | L55: 2 | M55: 1 | N55: 2 | O55: 0 | P55: 0 | Q55: 2 | R55: 0 | S55: 1 | T55: 0 | U55: 0 | V55: 2 | W55: 1 | X55: 1 | Y55: 0 | Z55: 1 | AA55: 2 | AB55: 1 | AC55: 1 | AD55: 2 | AE55: 2 | AF55: =COUNTIF(E55:AE55,2) -> 11 | AG55: 0.4074074074 | AH55: =COUNTIF(E55:AE55,1) -> 8 | AI55: 0.2962962963 | AJ55: =COUNTIF(E55:AE55,0) -> 8 | AK55: 0.2962962963 | AL55: 27
B56: Сведения об образовательной организации | C56: Образование | D56: Учебный план с приложением его копии | E56: 2 | F56: 2 | G56: 0 | H56: 2 | I56: 2 | J56: 2 | K56: 2 | L56: 2 | M56: 0 | N56: 2 | O56: 2 | P56: 0 | Q56: 2 | R56: 2 | S56: 0 | T56: 2 | U56: 2 | V56: 2 | W56: 0 | X56: 0 | Y56: 0 | Z56: 0 | AA56: 2 | AB56: 2 | AC56: 2 | AD56: 2 | AE56: 2 | AF56: =COUNTIF(E56:AE56,2) -> 19 | AG56: 0.7037037037 | AH56: =COUNTIF(E56:AE56,1) -> 0 | AI56: 0 | AJ56: =COUNTIF(E56:AE56,0) -> 8 | AK56: 0.2962962963 | AL56: 27
B57: Сведения об образовательной организации | C57: Образование | D57: Календарный учебный график с приложением его копии | E57: 2 | F57: 2 | G57: 2 | H57: 2 | I57: 2 | J57: 0 | K57: 2 | L57: 2 | M57: 0 | N57: 2 | O57: 2 | P57: 0 | Q57: 2 | R57: 2 | S57: 0 | T57: 0 | U57: 0 | V57: 2 | W57: 0 | X57: 0 | Y57: 0 | Z57: 0 | AA57: 2 | AB57: 2 | AC57: 2 | AD57: 0 | AE57: 2 | AF57: =COUNTIF(E57:AE57,2) -> 16 | AG57: 0.5925925926 | AH57: =COUNTIF(E57:AE57,1) -> 0 | AI57: 0 | AJ57: =COUNTIF(E57:AE57,0) -> 11 | AK57: 0.4074074074 | AL57: 27
B58: Сведения об образовательной организации | C58: Образование | D58: Методические и иные документы, разработанные образовательной организацией для обеспечения образовательного процесса | E58: 2 | F58: 2 | G58: 2 | H58: 2 | I58: 2 | J58: 1 | K58: 2 | L58: 2 | M58: 2 | N58: 2 | O58: 1 | P58: 2 | Q58: 2 | R58: 0 | S58: 2 | T58: 2 | U58: 2 | V58: 2 | W58: 1 | X58: 2 | Y58: 2 | Z58: 2 | AA58: 2 | AB58: 2 | AC58: 2 | AD58: 2 | AE58: 2 | AF58: =COUNTIF(E58:AE58,2) -> 23 | AG58: 0.8518518519 | AH58: =COUNTIF(E58:AE58,1) -> 3 | AI58: 0.1111111111 | AJ58: =COUNTIF(E58:AE58,0) -> 1 | AK58: 0.03703703704 | AL58: 27
B59: Сведения об образовательной организации | C59: Образовательные стандарты | D59: Информация ФГОС и об образовательных стандартах с приложением копий или гиперссылок на соответствующие документы на сайте Министерства образования и науки Российской Федерации | E59: 2 | F59: 2 | G59: 0 | H59: 2 | I59: 2 | J59: 0 | K59: 2 | L59: 2 | M59: 0 | N59: 2 | O59: 0 | P59: 2 | Q59: 0 | R59: 2 | S59: 0 | T59: 0 | U59: 0 | V59: 2 | W59: 2 | X59: 2 | Y59: 0 | Z59: 2 | AA59: 2 | AB59: 2 | AC59: 2 | AD59: 2 | AE59: 2 | AF59: =COUNTIF(E59:AE59,2) -> 18 | AG59: 0.6666666667 | AH59: =COUNTIF(E59:AE59,1) -> 0 | AI59: 0 | AJ59: =COUNTIF(E59:AE59,0) -> 9 | AK59: 0.3333333333 | AL59: 27
B60: Сведения об образовательной организации | C60: Руководство. Педагогический состав | D60: Фамилия, Имя, Отчество руководителя и его заместителей | E60: 2 | F60: 2 | G60: 2 | H60: 2 | I60: 2 | J60: 2 | K60: 2 | L60: 2 | M60: 2 | N60: 2 | O60: 2 | P60: 2 | Q60: 2 | R60: 2 | S60: 1 | T60: 2 | U60: 2 | V60: 2 | W60: 2 | X60: 2 | Y60: 2 | Z60: 2 | AA60: 2 | AB60: 2 | AC60: 2 | AD60: 2 | AE60: 2 | AF60: =COUNTIF(E60:AE60,2) -> 26 | AG60: 0.962962963 | AH60: =COUNTIF(E60:AE60,1) -> 1 | AI60: 0.03703703704 | AJ60: =COUNTIF(E60:AE60,0) -> 0 | AK60: 0 | AL60: 27
B61: Сведения об образовательной организации | C61: Руководство. Педагогический состав | D61: Должность руководителя, его заместителей | E61: 2 | F61: 2 | G61: 2 | H61: 2 | I61: 2 | J61: 2 | K61: 2 | L61: 2 | M61: 2 | N61: 2 | O61: 2 | P61: 2 | Q61: 2 | R61: 2 | S61: 2 | T61: 2 | U61: 2 | V61: 2 | W61: 2 | X61: 2 | Y61: 2 | Z61: 2 | AA61: 2 | AB61: 2 | AC61: 2 | AD61: 2 | AE61: 2 | AF61: =COUNTIF(E61:AE61,2) -> 27 | AG61: 1 | AH61: =COUNTIF(E61:AE61,1) -> 0 | AI61: 0 | AJ61: =COUNTIF(E61:AE61,0) -> 0 | AK61: 0 | AL61: 27
B62: Сведения об образовательной организации | C62: Руководство. Педагогический состав | D62: Контактные телефоны | E62: 2 | F62: 2 | G62: 2 | H62: 2 | I62: 2 | J62: 2 | K62: 2 | L62: 2 | M62: 2 | N62: 2 | O62: 2 | P62: 2 | Q62: 2 | R62: 2 | S62: 2 | T62: 2 | U62: 2 | V62: 2 | W62: 2 | X62: 2 | Y62: 2 | Z62: 2 | AA62: 2 | AB62: 2 | AC62: 2 | AD62: 2 | AE62: 2 | AF62: =COUNTIF(E62:AE62,2) -> 27 | AG62: 1 | AH62: =COUNTIF(E62:AE62,1) -> 0 | AI62: 0 | AJ62: =COUNTIF(E62:AE62,0) -> 0 | AK62: 0 | AL62: 27
B63: Сведения об образовательной организации | C63: Руководство. Педагогический состав | D63: Адреса электронной почты | E63: 2 | F63: 2 | G63: 2 | H63: 2 | I63: 2 | J63: 2 | K63: 2 | L63: 2 | M63: 2 | N63: 2 | O63: 2 | P63: 2 | Q63: 2 | R63: 2 | S63: 2 | T63: 2 | U63: 2 | V63: 2 | W63: 2 | X63: 2 | Y63: 2 | Z63: 2 | AA63: 2 | AB63: 2 | AC63: 2 | AD63: 2 | AE63: 2 | AF63: =COUNTIF(E63:AE63,2) -> 27 | AG63: 1 | AH63: =COUNTIF(E63:AE63,1) -> 0 | AI63: 0 | AJ63: =COUNTIF(E63:AE63,0) -> 0 | AK63: 0 | AL63: 27
B64: Сведения об образовательной организации | C64: Руководство. Педагогический состав | D64: Фамилия, Имя, Отчество педагогических работников | E64: 2 | F64: 2 | G64: 1 | H64: 2 | I64: 2 | J64: 2 | K64: 2 | L64: 2 | M64: 2 | N64: 2 | O64: 2 | P64: 2 | Q64: 2 | R64: 2 | S64: 2 | T64: 0 | U64: 2 | V64: 2 | W64: 2 | X64: 2 | Y64: 2 | Z64: 2 | AA64: 2 | AB64: 2 | AC64: 2 | AD64: 2 | AE64: 2 | AF64: =COUNTIF(E64:AE64,2) -> 25 | AG64: 0.9259259259 | AH64: =COUNTIF(E64:AE64,1) -> 1 | AI64: 0.03703703704 | AJ64: =COUNTIF(E64:AE64,0) -> 1 | AK64: 0.03703703704 | AL64: 27
B65: Сведения об образовательной организации | C65: Руководство. Педагогический состав | D65: Занимаемая должность (должности) | E65: 2 | F65: 2 | G65: 2 | H65: 2 | I65: 2 | J65: 2 | K65: 2 | L65: 2 | M65: 2 | N65: 2 | O65: 2 | P65: 2 | Q65: 2 | R65: 2 | S65: 2 | T65: 0 | U65: 2 | V65: 2 | W65: 2 | X65: 2 | Y65: 2 | Z65: 2 | AA65: 2 | AB65: 2 | AC65: 2 | AD65: 2 | AE65: 2 | AF65: =COUNTIF(E65:AE65,2) -> 26 | AG65: 0.962962963 | AH65: =COUNTIF(E65:AE65,1) -> 0 | AI65: 0 | AJ65: =COUNTIF(E65:AE65,0) -> 1 | AK65: 0.03703703704 | AL65: 27
B66: Сведения об образовательной организации | C66: Руководство. Педагогический состав | D66: Преподаваемые дисциплины | E66: 2 | F66: 2 | G66: 2 | H66: 2 | I66: 2 | J66: 2 | K66: 2 | L66: 2 | M66: 2 | N66: 2 | O66: 2 | P66: 2 | Q66: 2 | R66: 2 | S66: 2 | T66: 0 | U66: 2 | V66: 2 | W66: 2 | X66: 2 | Y66: 2 | Z66: 2 | AA66: 2 | AB66: 2 | AC66: 1 | AD66: 2 | AE66: 2 | AF66: =COUNTIF(E66:AE66,2) -> 25 | AG66: 0.9259259259 | AH66: =COUNTIF(E66:AE66,1) -> 1 | AI66: 0.03703703704 | AJ66: =COUNTIF(E66:AE66,0) -> 1 | AK66: 0.03703703704 | AL66: 27
B67: Сведения об образовательной организации | C67: Руководство. Педагогический состав | D67: Ученая степень (при наличии), ученое звание (при наличии) | E67: 2 | F67: 2 | G67: 2 | H67: 2 | I67: 2 | J67: 2 | K67: 2 | L67: 2 | M67: 2 | N67: 2 | O67: 2 | P67: 2 | Q67: 0 | R67: 2 | S67: 2 | T67: 0 | U67: 2 | V67: 2 | W67: 2 | X67: 2 | Y67: 2 | Z67: 2 | AA67: 2 | AB67: 2 | AC67: 1 | AD67: 2 | AE67: 2 | AF67: =COUNTIF(E67:AE67,2) -> 24 | AG67: 0.8888888889 | AH67: =COUNTIF(E67:AE67,1) -> 1 | AI67: 0.03703703704 | AJ67: =COUNTIF(E67:AE67,0) -> 2 | AK67: 0.07407407407 | AL67: 27
B68: Сведения об образовательной организации | C68: Руководство. Педагогический состав | D68: Наименование направления подготовки и (или) специальности | E68: 2 | F68: 2 | G68: 2 | H68: 2 | I68: 2 | J68: 2 | K68: 2 | L68: 2 | M68: 2 | N68: 2 | O68: 2 | P68: 2 | Q68: 2 | R68: 2 | S68: 2 | T68: 0 | U68: 2 | V68: 2 | W68: 2 | X68: 2 | Y68: 2 | Z68: 2 | AA68: 2 | AB68: 2 | AC68: 2 | AD68: 2 | AE68: 2 | AF68: =COUNTIF(E68:AE68,2) -> 26 | AG68: 0.962962963 | AH68: =COUNTIF(E68:AE68,1) -> 0 | AI68: 0 | AJ68: =COUNTIF(E68:AE68,0) -> 1 | AK68: 0.03703703704 | AL68: 27
B69: Сведения об образовательной организации | C69: Руководство. Педагогический состав | D69: Данные о повышении квалификации и (или) профессиональной переподготовке (при наличии) | E69: 2 | F69: 2 | G69: 2 | H69: 2 | I69: 2 | J69: 2 | K69: 2 | L69: 2 | M69: 2 | N69: 2 | O69: 2 | P69: 2 | Q69: 2 | R69: 2 | S69: 2 | T69: 0 | U69: 2 | V69: 2 | W69: 2 | X69: 2 | Y69: 2 | Z69: 2 | AA69: 2 | AB69: 2 | AC69: 2 | AD69: 2 | AE69: 2 | AF69: =COUNTIF(E69:AE69,2) -> 26 | AG69: 0.962962963 | AH69: =COUNTIF(E69:AE69,1) -> 0 | AI69: 0 | AJ69: =COUNTIF(E69:AE69,0) -> 1 | AK69: 0.03703703704 | AL69: 27
B70: Сведения об образовательной организации | C70: Руководство. Педагогический состав | D70: Общий стаж работы | E70: 2 | F70: 2 | G70: 1 | H70: 2 | I70: 2 | J70: 2 | K70: 2 | L70: 2 | M70: 2 | N70: 2 | O70: 2 | P70: 2 | Q70: 2 | R70: 2 | S70: 2 | T70: 0 | U70: 2 | V70: 2 | W70: 2 | X70: 2 | Y70: 2 | Z70: 2 | AA70: 2 | AB70: 2 | AC70: 2 | AD70: 2 | AE70: 2 | AF70: =COUNTIF(E70:AE70,2) -> 25 | AG70: =AF70*100%/AL70 -> 0.9259259259 | AH70: =COUNTIF(E70:AE70,1) -> 1 | AI70: =AH70*100%/AL70 -> 0.03703703704 | AJ70: =COUNTIF(E70:AE70,0) -> 1 | AK70: =AJ70*100%/AL70 -> 0.03703703704 | AL70: =AF70+AH70+AJ70 -> 27
B71: Сведения об образовательной организации | C71: Руководство. Педагогический состав | D71: Стаж работы по специальности | E71: 2 | F71: 2 | G71: 1 | H71: 2 | I71: 2 | J71: 2 | K71: 2 | L71: 2 | M71: 2 | N71: 2 | O71: 2 | P71: 2 | Q71: 2 | R71: 2 | S71: 2 | T71: 0 | U71: 2 | V71: 2 | W71: 2 | X71: 2 | Y71: 2 | Z71: 2 | AA71: 2 | AB71: 2 | AC71: 0 | AD71: 2 | AE71: 2 | AF71: =COUNTIF(E71:AE71,2) -> 24 | AG71: 0.8888888889 | AH71: =COUNTIF(E71:AE71,1) -> 1 | AI71: 0.03703703704 | AJ71: =COUNTIF(E71:AE71,0) -> 2 | AK71: 0.07407407407 | AL71: 27
B72: Сведения об образовательной организации | C72: Материально-техническая оснащенность образовательного процесса | D72: Сведения о наличии оборудованных учебных кабинетов, объектов для проведения практических занятий, объектов спорта, средств обучения и воспитания, в том числе приспособленных для использования инвалидами и лицами с ограниченными возможностями здоровья | E72: 2 | F72: 2 | G72: 2 | H72: 2 | I72: 2 | J72: 2 | K72: 0 | L72: 2 | M72: 2 | N72: 2 | O72: 2 | P72: 2 | Q72: 2 | R72: 0 | S72: 2 | T72: 2 | U72: 2 | V72: 2 | W72: 2 | X72: 2 | Y72: 2 | Z72: 2 | AA72: 2 | AB72: 2 | AC72: 2 | AD72: 2 | AE72: 2 | AF72: =COUNTIF(E72:AE72,2) -> 25 | AG72: 0.9259259259 | AH72: =COUNTIF(E72:AE72,1) -> 0 | AI72: 0 | AJ72: =COUNTIF(E72:AE72,0) -> 2 | AK72: 0.07407407407 | AL72: 27
B73: Сведения об образовательной организации | C73: Материально-техническая оснащенность образовательного процесса | D73: условия охраны здоровья обучающихся, в том числе инвалидов и лиц с ограниченными возможностями здоровья | E73: 0 | F73: 2 | G73: 1 | H73: 1 | I73: 2 | J73: 2 | K73: 0 | L73: 2 | M73: 0 | N73: 1 | O73: 2 | P73: 0 | Q73: 2 | R73: 0 | S73: 0 | T73: 0 | U73: 0 | V73: 2 | W73: 2 | X73: 0 | Y73: 0 | Z73: 2 | AA73: 2 | AB73: 0 | AC73: 0 | AD73: 1 | AE73: 2 | AF73: =COUNTIF(E73:AE73,2) -> 11 | AG73: 0.4074074074 | AH73: =COUNTIF(E73:AE73,1) -> 4 | AI73: 0.1481481481 | AJ73: =COUNTIF(E73:AE73,0) -> 12 | AK73: 0.4444444444 | AL73: 27
B74: Сведения об образовательной организации | C74: Материально-техническая оснащенность образовательного процесса | D74: доступ в здания образовательной организации инвалидов и лиц с ограниченными возможностями здоровья | E74: 2 | F74: 2 | G74: 0 | H74: 2 | I74: 2 | J74: 2 | K74: 0 | L74: 2 | M74: 2 | N74: 2 | O74: 2 | P74: 1 | Q74: 2 | R74: 2 | S74: 0 | T74: 0 | U74: 0 | V74: 2 | W74: 2 | X74: 0 | Y74: 2 | Z74: 2 | AA74: 2 | AB74: 0 | AC74: 2 | AD74: 1 | AE74: 2 | AF74: =COUNTIF(E74:AE74,2) -> 18 | AG74: 0.6666666667 | AH74: =COUNTIF(E74:AE74,1) -> 2 | AI74: 0.07407407407 | AJ74: =COUNTIF(E74:AE74,0) -> 7 | AK74: 0.2592592593 | AL74: 27
B75: Сведения об образовательной организации | C75: Материально-техническая оснащенность образовательного процесса | D75: доступ к информационным системам и информационно-телекоммуникационным сетям, в том числе приспособленным для использования инвалидами и лицами с ограниченными возможностями здоровья | E75: 2 | F75: 2 | G75: 1 | H75: 2 | I75: 2 | J75: 2 | K75: 0 | L75: 2 | M75: 2 | N75: 2 | O75: 2 | P75: 0 | Q75: 2 | R75: 2 | S75: 0 | T75: 0 | U75: 0 | V75: 2 | W75: 2 | X75: 0 | Y75: 2 | Z75: 2 | AA75: 2 | AB75: 0 | AC75: 0 | AD75: 1 | AE75: 2 | AF75: =COUNTIF(E75:AE75,2) -> 17 | AG75: 0.6296296296 | AH75: =COUNTIF(E75:AE75,1) -> 2 | AI75: 0.07407407407 | AJ75: =COUNTIF(E75:AE75,0) -> 8 | AK75: 0.2962962963 | AL75: 27
B76: Сведения об образовательной организации | C76: Материально-техническая оснащенность образовательного процесса | D76: Сведения об электронных образовательных ресурсах, к которым обеспечивается доступ обучающихся, в том числе приспособленные для использования инвалидами и лицами с ограниченными возможностями здоровья (ссылки на информационно-образовательные ресурсы:  официальный сайт Министерства образования и науки Российской Федерации http://www.mon.gov.ru;  федеральный портал «Российское образование» http://www.edu.ru;  информационная система «Единое окно доступа к образовательным ресурсам» http://windou.edu.ru;  единая коллекция цифровых образовательных ресурсов http://school-collection.edu.ru;  федеральный центр информационно-образовательных ресурсов http://fcior.edu.ru) | E76: 2 | F76: 2 | G76: 1 | H76: 2 | I76: 2 | J76: 2 | K76: 1 | L76: 2 | M76: 1 | N76: 1 | O76: 0 | P76: 0 | Q76: 1 | R76: 0 | S76: 0 | T76: 2 | U76: 0 | V76: 2 | W76: 2 | X76: 0 | Y76: 2 | Z76: 2 | AA76: 2 | AB76: 2 | AC76: 0 | AD76: 2 | AE76: 2 | AF76: =COUNTIF(E76:AE76,2) -> 15 | AG76: 0.5555555556 | AH76: =COUNTIF(E76:AE76,1) -> 5 | AI76: 0.1851851852 | AJ76: =COUNTIF(E76:AE76,0) -> 7 | AK76: 0.2592592593 | AL76: 27
B77: Сведения об образовательной организации | C77: Материально-техническая оснащенность образовательного процесса | D77: Сведения о специальных технических средствах обучения коллективного и индивидуального пользования для инвалидов и лиц с ограниченными возможностями здоровья | E77: 2 | F77: 2 | G77: 0 | H77: 2 | I77: 2 | J77: 2 | K77: 0 | L77: 2 | M77: 2 | N77: 2 | O77: 2 | P77: 2 | Q77: 2 | R77: 2 | S77: 0 | T77: 0 | U77: 0 | V77: 2 | W77: 2 | X77: 0 | Y77: 2 | Z77: 2 | AA77: 2 | AB77: 0 | AC77: 0 | AD77: 1 | AE77: 2 | AF77: =COUNTIF(E77:AE77,2) -> 18 | AG77: 0.6666666667 | AH77: =COUNTIF(E77:AE77,1) -> 1 | AI77: 0.03703703704 | AJ77: =COUNTIF(E77:AE77,0) -> 8 | AK77: 0.2962962963 | AL77: 27
B78: Сведения об образовательной организации | C78: Виды материальной поддержки | D78: виды материальной поддержки обучающихся | E78: 2 | F78: 2 | G78: 0 | H78: 2 | I78: 2 | J78: 2 | K78: 2 | L78: 2 | M78: 1 | N78: 2 | O78: 0 | P78: 2 | Q78: 2 | R78: 0 | S78: 0 | T78: 2 | U78: 0 | V78: 2 | W78: 2 | X78: 0 | Y78: 0 | Z78: 2 | AA78: 2 | AB78: 2 | AC78: 2 | AD78: 2 | AE78: 2 | AF78: =COUNTIF(E78:AE78,2) -> 19 | AG78: 0.7037037037 | AH78: =COUNTIF(E78:AE78,1) -> 1 | AI78: 0.03703703704 | AJ78: =COUNTIF(E78:AE78,0) -> 7 | AK78: 0.2592592593 | AL78: 27
B79: Сведения об образовательной организации | C79: Виды материальной поддержки | D79: трудоустройство выпускников | E79: 2 | F79: 2 | G79: 0 | H79: 0 | I79: 2 | J79: 0 | K79: 2 | L79: 2 | M79: 0 | N79: 2 | O79: 0 | P79: 2 | Q79: 2 | R79: 0 | S79: 0 | T79: 0 | U79: 0 | V79: 2 | W79: 2 | X79: 0 | Y79: 0 | Z79: 2 | AA79: 2 | AB79: 2 | AC79: 2 | AD79: 2 | AE79: 2 | AF79: =COUNTIF(E79:AE79,2) -> 16 | AG79: 0.5925925926 | AH79: =COUNTIF(E79:AE79,1) -> 0 | AI79: 0 | AJ79: =COUNTIF(E79:AE79,0) -> 11 | AK79: 0.4074074074 | AL79: 27
B80: Сведения об образовательной организации | C80: Платные образовательные услуги | D80: Гиперссылка на страницу Оказание платных образовательных 1.3. Документы | E80: 2 | F80: 2 | G80: 2 | H80: 2 | I80: 2 | J80: 1 | K80: 2 | L80: 2 | M80: 2 | N80: 2 | O80: 2 | P80: 1 | Q80: 2 | R80: 2 | S80: 1 | T80: 2 | U80: 2 | V80: 2 | W80: 2 | X80: 0 | Y80: 1 | Z80: 1 | AA80: 2 | AB80: 1 | AC80: 1 | AD80: 2 | AE80: 2 | AF80: =COUNTIF(E80:AE80,2) -> 19 | AG80: 0.7037037037 | AH80: =COUNTIF(E80:AE80,1) -> 7 | AI80: 0.2592592593 | AJ80: =COUNTIF(E80:AE80,0) -> 1 | AK80: 0.03703703704 | AL80: 27
B81: Сведения об образовательной организации | C81: Платные образовательные услуги | D81: расписание занятий по платным дополнительным образовательным услугам, не относящимся к основным видам деятельности с указанием Ф.И.О. педагогического работника | E81: 2 | F81: 2 | G81: 2 | H81: 2 | I81: 2 | J81: 0 | K81: 2 | L81: 2 | M81: 2 | N81: 2 | O81: 2 | P81: 1 | Q81: 2 | R81: 2 | S81: 2 | T81: 2 | U81: 0 | V81: 2 | W81: 2 | X81: 0 | Y81: 0 | Z81: 2 | AA81: 2 | AB81: 2 | AC81: 2 | AD81: 0 | AE81: 2 | AF81: =COUNTIF(E81:AE81,2) -> 21 | AG81: 0.7777777778 | AH81: =COUNTIF(E81:AE81,1) -> 1 | AI81: 0.03703703704 | AJ81: =COUNTIF(E81:AE81,0) -> 5 | AK81: 0.1851851852 | AL81: 27
B82: Сведения об образовательной организации | C82: Финансово-хозяйственная деятельность | D82: Муниципальное задание на текущий год и отчет о выполнении за прошедший год | E82: 2 | F82: 2 | G82: 2 | H82: 0 | I82: 2 | J82: 2 | K82: 2 | L82: 2 | M82: 2 | N82: 2 | O82: 2 | P82: 1 | Q82: 2 | R82: 0 | S82: 2 | T82: 1 | U82: 2 | V82: 2 | W82: 2 | X82: 2 | Y82: 2 | Z82: 0 | AA82: 2 | AB82: 1 | AC82: 0 | AD82: 2 | AE82: 2 | AF82: =COUNTIF(E82:AE82,2) -> 20 | AG82: 0.7407407407 | AH82: =COUNTIF(E82:AE82,1) -> 3 | AI82: 0.1111111111 | AJ82: =COUNTIF(E82:AE82,0) -> 4 | AK82: 0.1481481481 | AL82: 27
B83: Сведения об образовательной организации | C83: Финансово-хозяйственная деятельность | D83: Поступление и расходование финансовых и материальных средств по итогам финансового года | E83: 2 | F83: 2 | G83: 0 | H83: 2 | I83: 0 | J83: 0 | K83: 2 | L83: 2 | M83: 2 | N83: 0 | O83: 0 | P83: 2 | Q83: 1 | R83: 0 | S83: 0 | T83: 2 | U83: 0 | V83: 0 | W83: 2 | X83: 0 | Y83: 2 | Z83: 0 | AA83: 2 | AB83: 0 | AC83: 0 | AD83: 2 | AE83: 2 | AF83: =COUNTIF(E83:AE83,2) -> 13 | AG83: 0.4814814815 | AH83: =COUNTIF(E83:AE83,1) -> 1 | AI83: 0.03703703704 | AJ83: =COUNTIF(E83:AE83,0) -> 13 | AK83: 0.4814814815 | AL83: 27
B84: Сведения об образовательной организации | C84: Финансово-хозяйственная деятельность | D84: Отчет о финансово-хозяйственной деятельности | E84: 2 | F84: 2 | G84: 1 | H84: 2 | I84: 2 | J84: 2 | K84: 2 | L84: 2 | M84: 0 | N84: 0 | O84: 2 | P84: 2 | Q84: 2 | R84: 0 | S84: 1 | T84: 1 | U84: 0 | V84: 0 | W84: 2 | X84: 0 | Y84: 2 | Z84: 2 | AA84: 2 | AB84: 2 | AC84: 0 | AD84: 2 | AE84: 2 | AF84: =COUNTIF(E84:AE84,2) -> 17 | AG84: 0.6296296296 | AH84: =COUNTIF(E84:AE84,1) -> 3 | AI84: 0.1111111111 | AJ84: =COUNTIF(E84:AE84,0) -> 7 | AK84: 0.2592592593 | AL84: 27
B85: Сведения об образовательной организации | C85: Вакантные места для приема (перевода) | D85: Порядок приема | E85: 2 | F85: 2 | G85: 2 | H85: 2 | I85: 2 | J85: 1 | K85: 0 | L85: 2 | M85: 1 | N85: 2 | O85: 0 | P85: 2 | Q85: 2 | R85: 0 | S85: 0 | T85: 2 | U85: 0 | V85: 2 | W85: 2 | X85: 2 | Y85: 2 | Z85: 2 | AA85: 2 | AB85: 2 | AC85: 2 | AD85: 2 | AE85: 2 | AF85: =COUNTIF(E85:AE85,2) -> 20 | AG85: 0.7407407407 | AH85: =COUNTIF(E85:AE85,1) -> 2 | AI85: 0.07407407407 | AJ85: =COUNTIF(E85:AE85,0) -> 5 | AK85: 0.1851851852 | AL85: 27
B86: Порядок поступления в организацию | C86: Вакантные места для приема (перевода) | D86: Перечень необходимых документов для зачисления в образовательную организацию | E86: 2 | F86: 2 | G86: 1 | H86: 2 | I86: 2 | J86: 2 | K86: 0 | L86: 2 | M86: 1 | N86: 2 | O86: 1 | P86: 2 | Q86: 2 | R86: 0 | S86: 0 | T86: 2 | U86: 2 | V86: 2 | W86: 2 | X86: 2 | Y86: 2 | Z86: 2 | AA86: 2 | AB86: 2 | AC86: 2 | AD86: 2 | AE86: 2 | AF86: =COUNTIF(E86:AE86,2) -> 21 | AG86: 0.7777777778 | AH86: =COUNTIF(E86:AE86,1) -> 3 | AI86: 0.1111111111 | AJ86: =COUNTIF(E86:AE86,0) -> 3 | AK86: 0.1111111111 | AL86: 27
B87: Порядок поступления в организацию | C87: Вакантные места для приема (перевода) | D87: Перечень документов для родителей, необходимых для ознакомления | E87: 2 | F87: 2 | G87: 1 | H87: 2 | I87: 2 | J87: 2 | K87: 0 | L87: 2 | M87: 1 | N87: 2 | O87: 1 | P87: 2 | Q87: 2 | R87: 0 | S87: 0 | T87: 2 | U87: 2 | V87: 2 | W87: 2 | X87: 2 | Y87: 2 | Z87: 2 | AA87: 2 | AB87: 2 | AC87: 2 | AD87: 2 | AE87: 2 | AF87: =COUNTIF(E87:AE87,2) -> 21 | AG87: 0.7777777778 | AH87: =COUNTIF(E87:AE87,1) -> 3 | AI87: 0.1111111111 | AJ87: =COUNTIF(E87:AE87,0) -> 3 | AK87: 0.1111111111 | AL87: 27
B88: Порядок поступления в организацию | C88: Вакантные места для приема (перевода) | D88: Количество вакантных мест для приема (перевода) по каждой образовательной программе, направлению подготовки | E88: 2 | F88: 2 | G88: 0 | H88: 2 | I88: 2 | J88: 1 | K88: 2 | L88: 2 | M88: 1 | N88: 2 | O88: 1 | P88: 2 | Q88: 2 | R88: 0 | S88: 0 | T88: 2 | U88: 0 | V88: 2 | W88: 1 | X88: 2 | Y88: 2 | Z88: 2 | AA88: 2 | AB88: 2 | AC88: 2 | AD88: 2 | AE88: 0 | AF88: =COUNTIF(E88:AE88,2) -> 18 | AG88: 0.6666666667 | AH88: =COUNTIF(E88:AE88,1) -> 4 | AI88: 0.1481481481 | AJ88: =COUNTIF(E88:AE88,0) -> 5 | AK88: 0.1851851852 | AL88: 27
B89: Аттестация педагогических работников | C89: Нормативные документы | D89: Ссылка на официальный сайт ГБОУ ИРО КК http://iro23.ru/attestatsiya-pedagogicheskikh-kadrov/normativnyye-dokumenty | E89: 2 | F89: 2 | G89: 2 | H89: 2 | I89: 2 | J89: 2 | K89: 2 | L89: 2 | M89: 2 | N89: 2 | O89: 2 | P89: 2 | Q89: 2 | R89: 2 | S89: 2 | T89: 2 | U89: 2 | V89: 2 | W89: 2 | X89: 2 | Y89: 2 | Z89: 0 | AA89: 2 | AB89: 0 | AC89: 1 | AD89: 2 | AE89: 2 | AF89: =COUNTIF(E89:AE89,2) -> 24 | AG89: 0.8888888889 | AH89: =COUNTIF(E89:AE89,1) -> 1 | AI89: 0.03703703704 | AJ89: =COUNTIF(E89:AE89,0) -> 2 | AK89: 0.07407407407 | AL89: 27
C90: Аттестация в целях подтверждения соответствия занимаемой должности | D90: Приказ ОО о создании аттестационной комиссии | E90: 2 | F90: 2 | G90: 2 | H90: 2 | I90: 2 | J90: 2 | K90: 0 | L90: 2 | M90: 2 | N90: 2 | O90: 2 | P90: 0 | Q90: 2 | R90: 0 | S90: 0 | T90: 0 | U90: 0 | V90: 2 | W90: 2 | X90: 2 | Y90: 0 | Z90: 0 | AA90: 2 | AB90: 0 | AC90: 0 | AD90: 2 | AE90: 2 | AF90: =COUNTIF(E90:AE90,2) -> 17 | AG90: 0.6296296296 | AH90: =COUNTIF(E90:AE90,1) -> 0 | AI90: 0 | AJ90: =COUNTIF(E90:AE90,0) -> 10 | AK90: 0.3703703704 | AL90: 27
D91: Приказ ОО о проведении аттестации с приложением графика аттестации и списка аттестуемых педагогических работников | E91: 2 | F91: 2 | G91: 2 | H91: 2 | I91: 2 | J91: 2 | K91: 0 | L91: 2 | M91: 2 | N91: 2 | O91: 0 | P91: 0 | Q91: 2 | R91: 0 | S91: 0 | T91: 2 | U91: 0 | V91: 1 | W91: 1 | X91: 1 | Y91: 0 | Z91: 0 | AA91: 2 | AB91: 0 | AC91: 0 | AD91: 0 | AE91: 2 | AF91: =COUNTIF(E91:AE91,2) -> 13 | AG91: 0.4814814815 | AH91: =COUNTIF(E91:AE91,1) -> 3 | AI91: 0.1111111111 | AJ91: =COUNTIF(E91:AE91,0) -> 11 | AK91: 0.4074074074 | AL91: 27
C92: Результаты профессиональной деятельности аттестуемых в целях установления квалификационной категории | D92: Список аттестуемых: ФИО, должность, преподаваемый предмет (при необходимости), ссылка для перехода на его персональную страницу | E92: 2 | F92: 2 | G92: 2 | H92: 0 | I92: 2 | J92: 2 | K92: 2 | L92: 2 | M92: 2 | N92: 2 | O92: 2 | P92: 0 | Q92: 2 | R92: 0 | S92: 0 | T92: 0 | U92: 0 | V92: 1 | W92: 2 | X92: 1 | Y92: 0 | Z92: 0 | AA92: 2 | AB92: 0 | AC92: 0 | AD92: 1 | AE92: 2 | AF92: =COUNTIF(E92:AE92,2) -> 14 | AG92: 0.5185185185 | AH92: =COUNTIF(E92:AE92,1) -> 3 | AI92: 0.1111111111 | AJ92: =COUNTIF(E92:AE92,0) -> 10 | AK92: 0.3703703704 | AL92: 27
B93: Новости | C93: Новости | D93: Материалы о событиях текущей жизни школы, мероприятиях, проводимых в школе мероприятиях | E93: 2 | F93: 2 | G93: 2 | H93: 2 | I93: 2 | J93: 2 | K93: 2 | L93: 2 | M93: 2 | N93: 2 | O93: 2 | P93: 2 | Q93: 2 | R93: 2 | S93: 2 | T93: 2 | U93: 2 | V93: 2 | W93: 2 | X93: 2 | Y93: 2 | Z93: 2 | AA93: 2 | AB93: 2 | AC93: 2 | AD93: 2 | AE93: 2 | AF93: =COUNTIF(E93:AE93,2) -> 27 | AG93: 1 | AH93: =COUNTIF(E93:AE93,1) -> 0 | AI93: 0 | AJ93: =COUNTIF(E93:AE93,0) -> 0 | AK93: 0 | AL93: 27
B94: Организация учебно-воспитательного процесса | C94: Организация учебно-воспитательного процесса | D94: Учебный план | E94: 2 | F94: 2 | G94: 2 | H94: 2 | I94: 2 | J94: 2 | K94: 2 | L94: 2 | M94: 2 | N94: 2 | O94: 0 | P94: 0 | Q94: 2 | R94: 0 | S94: 0 | T94: 0 | U94: 0 | V94: 2 | W94: 2 | X94: 0 | Y94: 0 | Z94: 2 | AA94: 0 | AB94: 0 | AC94: 2 | AD94: 2 | AE94: 0 | AF94: =COUNTIF(E94:AE94,2) -> 16 | AG94: 0.5925925926 | AH94: =COUNTIF(E94:AE94,1) -> 0 | AI94: 0 | AJ94: =COUNTIF(E94:AE94,0) -> 11 | AK94: 0.4074074074 | AL94: 27
B95: Организация учебно-воспитательного процесса | C95: Организация учебно-воспитательного процесса | D95: Расписание занятий и работы кружков, планы работы, объявления | E95: 2 | F95: 2 | G95: 0 | H95: 2 | I95: 2 | J95: 2 | K95: 2 | L95: 2 | M95: 2 | N95: 2 | O95: 0 | P95: 0 | Q95: 0 | R95: 0 | S95: 0 | T95: 0 | U95: 2 | V95: 2 | W95: 2 | X95: 0 | Y95: 0 | Z95: 0 | AA95: 2 | AB95: 1 | AC95: 2 | AD95: 2 | AE95: 0 | AF95: =COUNTIF(E95:AE95,2) -> 15 | AG95: 0.5555555556 | AH95: =COUNTIF(E95:AE95,1) -> 1 | AI95: 0.03703703704 | AJ95: =COUNTIF(E95:AE95,0) -> 11 | AK95: 0.4074074074 | AL95: 27
B96: Достижения | C96: Достижения | D96: Материалы о достижениях учащихся, педагогических работников | E96: 2 | F96: 2 | G96: 2 | H96: 2 | I96: 2 | J96: 2 | K96: 2 | L96: 2 | M96: 2 | N96: 2 | O96: 2 | P96: 2 | Q96: 2 | R96: 0 | S96: 2 | T96: 2 | U96: 2 | V96: 2 | W96: 2 | X96: 2 | Y96: 2 | Z96: 2 | AA96: 2 | AB96: 2 | AC96: 2 | AD96: 2 | AE96: 2 | AF96: =COUNTIF(E96:AE96,2) -> 26 | AG96: 0.962962963 | AH96: =COUNTIF(E96:AE96,1) -> 0 | AI96: 0 | AJ96: =COUNTIF(E96:AE96,0) -> 1 | AK96: 0.03703703704 | AL96: 27
B97: Программа развития | C97: Программа развития | D97: Программа, промежуточный и ежегодный анализ результатов реализации Программы | E97: 1 | F97: 1 | G97: 2 | H97: 2 | I97: 2 | J97: 0 | K97: 1 | L97: 1 | M97: 2 | N97: 2 | O97: 1 | P97: 2 | Q97: 2 | R97: 1 | S97: 1 | T97: 0 | U97: 2 | V97: 2 | W97: 2 | X97: 0 | Y97: 2 | Z97: 1 | AA97: 2 | AB97: 2 | AC97: 2 | AD97: 1 | AE97: 2 | AF97: =COUNTIF(E97:AE97,2) -> 15 | AG97: 0.5555555556 | AH97: =COUNTIF(E97:AE97,1) -> 9 | AI97: 0.3333333333 | AJ97: =COUNTIF(E97:AE97,0) -> 3 | AK97: 0.1111111111 | AL97: 27
B98: Воспитательная работа | C98: Воспитательная работа | D98: Календарный план | E98: 2 | F98: 2 | G98: 0 | H98: 2 | I98: 2 | J98: 0 | K98: 0 | L98: 2 | M98: 1 | N98: 2 | O98: 0 | P98: 0 | Q98: 2 | R98: 0 | S98: 0 | T98: 0 | U98: 0 | V98: 0 | W98: 0 | X98: 0 | Y98: 2 | Z98: 0 | AA98: 2 | AB98: 2 | AC98: 0 | AD98: 2 | AE98: 2 | AF98: =COUNTIF(E98:AE98,2) -> 12 | AG98: 0.4444444444 | AH98: =COUNTIF(E98:AE98,1) -> 1 | AI98: 0.03703703704 | AJ98: =COUNTIF(E98:AE98,0) -> 14 | AK98: 0.5185185185 | AL98: 27
B99: Воспитательная работа | C99: Воспитательная работа | D99: План мероприятий на текущий учебный год, новости, статьи и сценарии о проведенных культурно-досуговых и спортивно-массовых мероприятиях | E99: 2 | F99: 2 | G99: 0 | H99: 2 | I99: 2 | J99: 2 | K99: 0 | L99: 1 | M99: 2 | N99: 2 | O99: 0 | P99: 0 | Q99: 2 | R99: 0 | S99: 2 | T99: 0 | U99: 2 | V99: 2 | W99: 0 | X99: 1 | Y99: 0 | Z99: 0 | AA99: 2 | AB99: 2 | AC99: 1 | AD99: 1 | AE99: 2 | AF99: =COUNTIF(E99:AE99,2) -> 14 | AG99: 0.5185185185 | AH99: =COUNTIF(E99:AE99,1) -> 4 | AI99: 0.1481481481 | AJ99: =COUNTIF(E99:AE99,0) -> 9 | AK99: 0.3333333333 | AL99: 27
B100: Информационная безопасность | C100: Локальные нормативные акты в сфере обеспечения информационной безопасности обучающихся | D100: копии документов, регламентирующие организацию и работу с персональными данными. Допускается вместо копий размещать гиперссылку на страницу Обработка персональных данных подраздела 1.3. Документы, раздела Сведения об образовательной организации; | E100: 2 | F100: 2 | G100: 0 | H100: 2 | I100: 2 | J100: 0 | K100: 0 | L100: 2 | M100: 2 | N100: 2 | O100: 2 | P100: 0 | Q100: 2 | R100: 2 | S100: 0 | T100: 0 | U100: 0 | V100: 2 | W100: 2 | X100: 2 | Y100: 2 | Z100: 2 | AA100: 2 | AB100: 1 | AC100: 0 | AD100: 2 | AE100: 2 | AF100: =COUNTIF(E100:AE100,2) -> 18 | AG100: 0.6666666667 | AH100: =COUNTIF(E100:AE100,1) -> 1 | AI100: 0.03703703704 | AJ100: =COUNTIF(E100:AE100,0) -> 8 | AK100: 0.2962962963 | AL100: 27
B101: Информационная безопасность | D101: планы мероприятий по обеспечению информационной безопасности обучающихся | E101: 1 | F101: 2 | G101: 0 | H101: 2 | I101: 0 | J101: 0 | K101: 0 | L101: 0 | M101: 2 | N101: 2 | O101: 0 | P101: 0 | Q101: 2 | R101: 0 | S101: 0 | T101: 0 | U101: 0 | V101: 2 | W101: 0 | X101: 0 | Y101: 0 | Z101: 0 | AA101: 2 | AB101: 1 | AC101: 0 | AD101: 0 | AE101: 0 | AF101: =COUNTIF(E101:AE101,2) -> 7 | AG101: 0.2592592593 | AH101: =COUNTIF(E101:AE101,1) -> 2 | AI101: 0.07407407407 | AJ101: =COUNTIF(E101:AE101,0) -> 18 | AK101: 0.6666666667 | AL101: 27
B102: Информационная безопасность | C102: Нормативное регулирование | D102: актуальные сведения о федеральных и региональных законах, письмах органов власти и другие нормативно-правовые документы, регламентирующие обеспечение информационной безопасности несовершеннолетних. Допускается вместо копий размещать гиперссылки на соответствующие документы на сайтах органов государственной власти | E102: 2 | F102: 2 | G102: 0 | H102: 2 | I102: 2 | J102: 0 | K102: 2 | L102: 2 | M102: 2 | N102: 2 | O102: 2 | P102: 0 | Q102: 2 | R102: 0 | S102: 0 | T102: 0 | U102: 0 | V102: 2 | W102: 2 | X102: 2 | Y102: 2 | Z102: 2 | AA102: 2 | AB102: 2 | AC102: 0 | AD102: 2 | AE102: 2 | AF102: =COUNTIF(E102:AE102,2) -> 19 | AG102: 0.7037037037 | AH102: =COUNTIF(E102:AE102,1) -> 0 | AI102: 0 | AJ102: =COUNTIF(E102:AE102,0) -> 8 | AK102: 0.2962962963 | AL102: 27
B103: Информационная безопасность | C103: Педагогическим работникам | D103: Методические рекомендации | E103: 2 | F103: 2 | G103: 0 | H103: 2 | I103: 2 | J103: 0 | K103: 0 | L103: 0 | M103: 2 | N103: 1 | O103: 2 | P103: 0 | Q103: 2 | R103: 0 | S103: 0 | T103: 0 | U103: 0 | V103: 2 | W103: 2 | X103: 0 | Y103: 0 | Z103: 0 | AA103: 2 | AB103: 2 | AC103: 0 | AD103: 0 | AE103: 2 | AF103: =COUNTIF(E103:AE103,2) -> 12 | AG103: 0.4444444444 | AH103: =COUNTIF(E103:AE103,1) -> 1 | AI103: 0.03703703704 | AJ103: =COUNTIF(E103:AE103,0) -> 14 | AK103: 0.5185185185 | AL103: 27
B104: Информационная безопасность | D104: Актуальная информация о мероприятиях, проектах и программах, направленных на повышение информационной грамотности педагогических работников | E104: 2 | F104: 2 | G104: 0 | H104: 2 | I104: 2 | J104: 0 | K104: 2 | L104: 2 | M104: 2 | N104: 2 | O104: 2 | P104: 0 | Q104: 2 | R104: 0 | S104: 0 | T104: 0 | U104: 0 | V104: 2 | W104: 2 | X104: 0 | Y104: 0 | Z104: 0 | AA104: 2 | AB104: 0 | AC104: 0 | AD104: 0 | AE104: 0 | AF104: =COUNTIF(E104:AE104,2) -> 13 | AG104: 0.4814814815 | AH104: =COUNTIF(E104:AE104,1) -> 0 | AI104: 0 | AJ104: =COUNTIF(E104:AE104,0) -> 14 | AK104: 0.5185185185 | AL104: 27
B105: Информационная безопасность | C105: Обучающимся | D105: Информационная памятка обучающимся | E105: 2 | F105: 2 | G105: 0 | H105: 2 | I105: 2 | J105: 2 | K105: 2 | L105: 2 | M105: 2 | N105: 2 | O105: 2 | P105: 0 | Q105: 2 | R105: 2 | S105: 0 | T105: 0 | U105: 0 | V105: 2 | W105: 2 | X105: 0 | Y105: 2 | Z105: 2 | AA105: 2 | AB105: 2 | AC105: 0 | AD105: 2 | AE105: 2 | AF105: =COUNTIF(E105:AE105,2) -> 20 | AG105: 0.7407407407 | AH105: =COUNTIF(E105:AE105,1) -> 0 | AI105: 0 | AJ105: =COUNTIF(E105:AE105,0) -> 7 | AK105: 0.2592592593 | AL105: 27
B106: Информационная безопасность | D106: Актуальная информация о мероприятиях, проектах и программах, направленных на повышение информационной грамотности обучающихся | E106: 2 | F106: 2 | G106: 0 | H106: 0 | I106: 0 | J106: 0 | K106: 0 | L106: 0 | M106: 2 | N106: 1 | O106: 0 | P106: 0 | Q106: 2 | R106: 0 | S106: 0 | T106: 0 | U106: 0 | V106: 0 | W106: 0 | X106: 0 | Y106: 0 | Z106: 0 | AA106: 1 | AB106: 0 | AC106: 0 | AD106: 0 | AE106: 0 | AF106: =COUNTIF(E106:AE106,2) -> 4 | AG106: 0.1481481481 | AH106: =COUNTIF(E106:AE106,1) -> 2 | AI106: 0.07407407407 | AJ106: =COUNTIF(E106:AE106,0) -> 21 | AK106: 0.7777777778 | AL106: 27
B107: Информационная безопасность | C107: Родителям (законным представителям) | D107: Информационная памятка родителям | E107: 2 | F107: 2 | G107: 0 | H107: 2 | I107: 2 | J107: 2 | K107: 2 | L107: 2 | M107: 2 | N107: 2 | O107: 2 | P107: 0 | Q107: 2 | R107: 2 | S107: 0 | T107: 0 | U107: 0 | V107: 2 | W107: 2 | X107: 2 | Y107: 2 | Z107: 2 | AA107: 2 | AB107: 2 | AC107: 0 | AD107: 2 | AE107: 2 | AF107: =COUNTIF(E107:AE107,2) -> 21 | AG107: 0.7777777778 | AH107: =COUNTIF(E107:AE107,1) -> 0 | AI107: 0 | AJ107: =COUNTIF(E107:AE107,0) -> 6 | AK107: 0.2222222222 | AL107: 27
B108: Информационная безопасность | C108: Детские безопасные сайты | D108: Информация о рекомендуемых к использованию в учебном процессе безопасных сайтах, баннеры безопасных детских сайтов. | E108: 2 | F108: 2 | G108: 0 | H108: 2 | I108: 2 | J108: 0 | K108: 2 | L108: 2 | M108: 2 | N108: 0 | O108: 2 | P108: 0 | Q108: 2 | R108: 0 | S108: 0 | T108: 0 | U108: 0 | V108: 2 | W108: 2 | X108: 0 | Y108: 2 | Z108: 0 | AA108: 2 | AB108: 2 | AC108: 0 | AD108: 0 | AE108: 2 | AF108: =COUNTIF(E108:AE108,2) -> 15 | AG108: 0.5555555556 | AH108: =COUNTIF(E108:AE108,1) -> 0 | AI108: 0 | AJ108: =COUNTIF(E108:AE108,0) -> 12 | AK108: 0.4444444444 | AL108: 27
B109: Наш профсоюз | C109: Наш профсоюз | D109: Новости профсоюзного комитета, состав профсоюзного комитета, документы первичной профсоюзной организации, направления работы, это важно знать каждому, фотоотчет о мероприятиях, социальное партнерство, работа с ветеранами | E109: 2 | F109: 2 | G109: 2 | H109: 2 | I109: 2 | J109: 2 | K109: 2 | L109: 2 | M109: 2 | N109: 2 | O109: 2 | P109: 2 | Q109: 2 | R109: 2 | S109: 2 | T109: 2 | U109: 2 | V109: 2 | W109: 2 | X109: 2 | Y109: 2 | Z109: 2 | AA109: 2 | AB109: 2 | AC109: 2 | AD109: 2 | AE109: 2 | AF109: =COUNTIF(E109:AE109,2) -> 27 | AG109: 1 | AH109: =COUNTIF(E109:AE109,1) -> 0 | AI109: 0 | AJ109: =COUNTIF(E109:AE109,0) -> 0 | AK109: 0 | AL109: 27
B110: Карта сайта | C110: Карта сайта | D110: Содержание информации во всех разделах сайта и ссылки на все документы | E110: 2 | F110: 2 | G110: 2 | H110: 2 | I110: 2 | J110: 2 | K110: 2 | L110: 2 | M110: 2 | N110: 2 | O110: 2 | P110: 2 | Q110: 2 | R110: 2 | S110: 2 | T110: 2 | U110: 2 | V110: 2 | W110: 2 | X110: 2 | Y110: 2 | Z110: 2 | AA110: 2 | AB110: 2 | AC110: 2 | AD110: 2 | AE110: 2 | AF110: =COUNTIF(E110:AE110,2) -> 27 | AG110: 1 | AH110: =COUNTIF(E110:AE110,1) -> 0 | AI110: 0 | AJ110: =COUNTIF(E110:AE110,0) -> 0 | AK110: 0 | AL110: 27
B111: Статистика посещения | C111: Статистика посещения | D111: Подсчет посещаемости web-сайта | E111: 2 | F111: 2 | G111: 2 | H111: 2 | I111: 2 | J111: 2 | K111: 2 | L111: 2 | M111: 2 | N111: 2 | O111: 2 | P111: 2 | Q111: 2 | R111: 2 | S111: 2 | T111: 2 | U111: 2 | V111: 2 | W111: 2 | X111: 2 | Y111: 2 | Z111: 2 | AA111: 2 | AB111: 2 | AC111: 2 | AD111: 2 | AE111: 2 | AF111: =COUNTIF(E111:AE111,2) -> 27 | AG111: =AF111*100%/AL111 -> 1 | AH111: =COUNTIF(E111:AE111,1) -> 0 | AI111: =AH111*100%/AL111 -> 0 | AJ111: =COUNTIF(E111:AE111,0) -> 0 | AK111: 0 | AL111: =AF111+AH111+AJ111 -> 27
D112: Сумма баллов | E112: =SUM(E5:E111) -> 204 | F112: =SUM(F5:F111) -> 212 | G112: 144 | H112: 202 | I112: 205 | J112: 158 | K112: 168 | L112: 204 | M112: 188 | N112: 197 | O112: 169 | P112: 155 | Q112: 202 | R112: 131 | S112: 126 | T112: 118 | U112: 128 | V112: 199 | W112: 195 | X112: 151 | Y112: 163 | Z112: 173 | AA112: 205 | AB112: 176 | AC112: 153 | AD112: 182 | AE112: 200
D113: Процент наполняемости | E113: =E112/(E121*2) -> 0.953271028 | F113: =F112/(F121*2) -> 0.9906542056 | G113: 0.6728971963 | H113: 0.9439252336 | I113: 0.9579439252 | J113: 0.738317757 | K113: 0.785046729 | L113: 0.953271028 | M113: 0.8785046729 | N113: 0.9205607477 | O113: 0.7897196262 | P113: 0.7242990654 | Q113: 0.9439252336 | R113: 0.6121495327 | S113: 0.5887850467 | T113: 0.5514018692 | U113: 0.5981308411 | V113: 0.9299065421 | W113: 0.9112149533 | X113: 0.7056074766 | Y113: 0.761682243 | Z113: 0.808411215 | AA113: 0.9579439252 | AB113: 0.8224299065 | AC113: 0.714953271 | AD113: 0.8504672897 | AE113: 0.9345794393
D115: Обновленная информация | E115: =COUNTIF(E5:E111,2) -> 100 | F115: =COUNTIF(F5:F111,2) -> 105 | G115: 65 | H115: 99 | I115: 101 | J115: 72 | K115: 82 | L115: 100 | M115: 89 | N115: 95 | O115: 80 | P115: 74 | Q115: 99 | R115: 61 | S115: 57 | T115: 55 | U115: 62 | V115: 98 | W115: 95 | X115: 71 | Y115: 79 | Z115: 84 | AA115: 102 | AB115: 83 | AC115: 72 | AD115: 87 | AE115: 99
D116: Обновленная информация, % | E116: =E115*100%/E121 -> 0.9345794393 | F116: =F115*100%/F121 -> 0.9813084112 | G116: 0.6074766355 | H116: 0.9252336449 | I116: 0.9439252336 | J116: 0.6728971963 | K116: 0.7663551402 | L116: 0.9345794393 | M116: 0.8317757009 | N116: 0.8878504673 | O116: 0.7476635514 | P116: 0.691588785 | Q116: 0.9252336449 | R116: 0.5700934579 | S116: 0.5327102804 | T116: 0.5140186916 | U116: 0.5794392523 | V116: 0.9158878505 | W116: 0.8878504673 | X116: 0.6635514019 | Y116: 0.738317757 | Z116: 0.785046729 | AA116: 0.953271028 | AB116: 0.7757009346 | AC116: 0.6728971963 | AD116: 0.8130841121 | AE116: 0.9252336449
D117: Неполная информация | E117: =COUNTIF(E5:E111,1) -> 4 | F117: =COUNTIF(F5:F111,1) -> 2 | G117: 14 | H117: 4 | I117: 3 | J117: 14 | K117: 4 | L117: 4 | M117: 10 | N117: 7 | O117: 9 | P117: 7 | Q117: 4 | R117: 9 | S117: 12 | T117: 8 | U117: 4 | V117: 3 | W117: 5 | X117: 9 | Y117: 5 | Z117: 5 | AA117: 1 | AB117: 10 | AC117: 9 | AD117: 8 | AE117: 2
D118: Неполная информация,% | E118: =E117*100%/E121 -> 0.03738317757 | F118: =F117*100%/F121 -> 0.01869158879 | G118: 0.1308411215 | H118: 0.03738317757 | I118: 0.02803738318 | J118: 0.1308411215 | K118: 0.03738317757 | L118: 0.03738317757 | M118: 0.09345794393 | N118: 0.06542056075 | O118: 0.08411214953 | P118: 0.06542056075 | Q118: 0.03738317757 | R118: 0.08411214953 | S118: 0.1121495327 | T118: 0.07476635514 | U118: 0.03738317757 | V118: 0.02803738318 | W118: 0.04672897196 | X118: 0.08411214953 | Y118: 0.04672897196 | Z118: 0.04672897196 | AA118: 0.009345794393 | AB118: 0.09345794393 | AC118: 0.08411214953 | AD118: 0.07476635514 | AE118: 0.01869158879
D119: Информация отсутствует | E119: =COUNTIF(E5:E111,0) -> 3 | F119: =COUNTIF(F5:F111,0) -> 0 | G119: 28 | H119: 4 | I119: 3 | J119: 21 | K119: 21 | L119: 3 | M119: 8 | N119: 5 | O119: 18 | P119: 26 | Q119: 4 | R119: 37 | S119: 38 | T119: 44 | U119: 41 | V119: 6 | W119: 7 | X119: 27 | Y119: 23 | Z119: 18 | AA119: 4 | AB119: 14 | AC119: 26 | AD119: 12 | AE119: 6
D120: Информация отсутствует, % | E120: =E119*100%/E121 -> 0.02803738318 | F120: =F119*100%/F121 -> 0 | G120: 0.261682243 | H120: 0.03738317757 | I120: 0.02803738318 | J120: 0.1962616822 | K120: 0.1962616822 | L120: 0.02803738318 | M120: 0.07476635514 | N120: 0.04672897196 | O120: 0.1682242991 | P120: 0.2429906542 | Q120: 0.03738317757 | R120: 0.3457943925 | S120: 0.3551401869 | T120: 0.4112149533 | U120: 0.3831775701 | V120: 0.05607476636 | W120: 0.06542056075 | X120: 0.2523364486 | Y120: 0.214953271 | Z120: 0.1682242991 | AA120: 0.03738317757 | AB120: 0.1308411215 | AC120: 0.2429906542 | AD120: 0.1121495327 | AE120: 0.05607476636
D121: Количество критериев | E121: =E115+E117+E119 -> 107 | F121: =F115+F117+F119 -> 107 | G121: 107 | H121: 107 | I121: 107 | J121: 107 | K121: 107 | L121: 107 | M121: 107 | N121: 107 | O121: 107 | P121: 107 | Q121: 107 | R121: 107 | S121: 107 | T121: 107 | U121: 107 | V121: 107 | W121: 107 | X121: 107 | Y121: 107 | Z121: 107 | AA121: 107 | AB121: 107 | AC121: 107 | AD121: 107 | AE121: 107
